Workbook

Sheet Centros
A1: Departamento | C1: Municipio | E1: Aldea | G1: Centro Educativo | J1: CEB (7-9) | M1: MEDIA Presencial | P1: MEDIA ISEMED | S1: MEDIA SAT | V1: MEDIA IHER | Y1: Matricula TOTAL
A2: Codigo | B2: Descripcion | C2: Codigo | D2: Descripcion | E2: Codigo | F2: Descripcion | G2: Codigo | H2: Nombre | I2: Direccion | J2: F | K2: M | L2: T | M2: F | N2: M | O2: T | P2: F | Q2: M | R2: T | S2: F | T2: M | U2: T | V2: F | W2: M | X2: T | Y2: F | Z2: M | AA2: T
A3: 01 | B3: Atlántida | C3: 01 | D3: LA CEIBA | E3: 01 | F3: La Ceiba | G3: 010100007 | H3: CRISTOBAL COLON | I3: COL. YESSENIA CASTILLO | J3: 70 | K3: 54 | M3: 0 | N3: 0 | P3: 0 | Q3: 0 | S3: 0 | T3: 0 | V3: 0 | W3: 0 | Y3: =J3+M3+P3+S3+V3 -> 70 | Z3: =K3+N3+Q3+T3+W3 -> 54 | AA3: =Y3+Z3 -> 124
A4: 01 | B4: Atlántida | C4: 01 | D4: LA CEIBA | E4: 01 | F4: La Ceiba | G4: 010100016 | H4: JUAN PINEDA CARIAS | I4: COLONIA PIZZATY | J4: 163 | K4: 135 | M4: 0 | N4: 0 | P4: 0 | Q4: 0 | S4: 0 | T4: 0 | V4: 0 | W4: 0 | Y4: =J4+M4+P4+S4+V4 -> 163 | Z4: =K4+N4+Q4+T4+W4 -> 135 | AA4: =Y4+Z4 -> 298
A5: 01 | B5: Atlántida | C5: 01 | D5: LA CEIBA | E5: 01 | F5: La Ceiba | G5: 010100028 | H5: JUSTO RUFINO SPILBURY | I5: EL BUFALO | J5: 35 | K5: 41 | M5: 0 | N5: 0 | P5: 0 | Q5: 0 | S5: 0 | T5: 0 | V5: 0 | W5: 0 | Y5: 35 | Z5: 41 | AA5: 76
A6: 01 | B6: Atlántida | C6: 01 | D6: LA CEIBA | E6: 01 | F6: La Ceiba | G6: 010100031 | H6: RAFAELA HUETE DE RODRIGUEZ | I6: MIRAMAR | J6: 66 | K6: 84 | M6: 0 | N6: 0 | P6: 0 | Q6: 0 | S6: 0 | T6: 0 | V6: 0 | W6: 0 | Y6: 66 | Z6: 84 | AA6: 150
A7: 01 | B7: Atlántida | C7: 01 | D7: LA CEIBA | E7: 01 | F7: La Ceiba | G7: 010100032 | H7: RAFAEL PINEDA PONCE | I7: COL SUYAPA | J7: 87 | K7: 75 | M7: 0 | N7: 0 | P7: 0 | Q7: 0 | S7: 0 | T7: 0 | V7: 0 | W7: 0 | Y7: 87 | Z7: 75 | AA7: 162
A8: 01 | B8: Atlántida | C8: 01 | D8: LA CEIBA | E8: 01 | F8: La Ceiba | G8: 010100033 | H8: JOSE V VASQUES | I8: GOLOZON | J8: 116 | K8: 79 | M8: 0 | N8: 0 | P8: 0 | Q8: 0 | S8: 0 | T8: 0 | V8: 0 | W8: 0 | Y8: 116 | Z8: 79 | AA8: 195
A9: 01 | B9: Atlántida | C9: 01 | D9: LA CEIBA | E9: 01 | F9: La Ceiba | G9: 010100042 | H9: JUANA REYES DE MARESMA | I9: PALMIRA | J9: 104 | K9: 75 | M9: 0 | N9: 0 | P9: 0 | Q9: 0 | S9: 0 | T9: 0 | V9: 0 | W9: 0 | Y9: 104 | Z9: 75 | AA9: 179
A10: 01 | B10: Atlántida | C10: 01 | D10: LA CEIBA | E10: 01 | F10: La Ceiba | G10: 010100045 | H10: JOSE TRINIDAD REYES | I10: BARRIO DANTO | J10: 128 | K10: 91 | M10: 0 | N10: 0 | P10: 0 | Q10: 0 | S10: 0 | T10: 0 | V10: 0 | W10: 0 | Y10: 128 | Z10: 91 | AA10: 219
A11: 01 | B11: Atlántida | C11: 01 | D11: LA CEIBA | E11: 21 | F11: Yaruca | G11: 010100047 | H11: MINERVA | I11: CUENCA DEL RIO CANGREJAL 22 KM DE CEIBA | J11: 30 | K11: 33 | M11: 0 | N11: 0 | P11: 0 | Q11: 0 | S11: 0 | T11: 0 | V11: 0 | W11: 0 | Y11: 30 | Z11: 33 | AA11: 63
A12: 01 | B12: Atlántida | C12: 01 | D12: LA CEIBA | E12: 16 | F12: Río Viejo | G12: 010100050 | H12: JUAN LINDO | I12: EL PERU | J12: 76 | K12: 64 | M12: 0 | N12: 0 | P12: 0 | Q12: 0 | S12: 0 | T12: 0 | V12: 0 | W12: 0 | Y12: 76 | Z12: 64 | AA12: 140
A13: 01 | B13: Atlántida | C13: 01 | D13: LA CEIBA | E13: 01 | F13: La Ceiba | G13: 010100053 | H13: CLAUDIO BARRERRA | I13: SAN JUDAS TADEO | J13: 229 | K13: 154 | M13: 0 | N13: 0 | P13: 0 | Q13: 0 | S13: 0 | T13: 0 | V13: 0 | W13: 0 | Y13: 229 | Z13: 154 | AA13: 383
A14: 01 | B14: Atlántida | C14: 01 | D14: LA CEIBA | E14: 01 | F14: La Ceiba | G14: 010100053 | H14: CLAUDIO BARRERRA | I14: SAN JUDAS TADEO | J14: 0 | K14: 0 | M14: 57 | N14: 43 | P14: 0 | Q14: 0 | S14: 0 | T14: 0 | V14: 0 | W14: 0 | Y14: 57 | Z14: 43 | AA14: 100
A15: 01 | B15: Atlántida | C15: 01 | D15: LA CEIBA | E15: 01 | F15: La Ceiba | G15: 010100071 | H15: MARCIO RENE ESPINAL CARDONA | I15: COL. RODOLFO IRIAS NAVAS | J15: 233 | K15: 165 | M15: 0 | N15: 0 | P15: 0 | Q15: 0 | S15: 0 | T15: 0 | V15: 0 | W15: 0 | Y15: 233 | Z15: 165 | AA15: 398
A16: 01 | B16: Atlántida | C16: 01 | D16: LA CEIBA | E16: 01 | F16: La Ceiba | G16: 010100131 | H16: MANUEL BONILLA | I16: CARMEN ELENA, PROLONGACION AVE SAN ISIDRO | J16: 0 | K16: 0 | M16: 2,388 | N16: 1,666 | P16: 559 | Q16: 240 | S16: 0 | T16: 0 | V16: 0 | W16: 0 | Y16: 2,947 | Z16: 1,906 | AA16: 4,853
A17: 01 | B17: Atlántida | C17: 01 | D17: LA CEIBA | E17: 01 | F17: La Ceiba | G17: 010100132 | H17: MARCO H FAJARDO, TECNICO | I17: COLONIA PALMIRA, DESVIO AL CURLA | J17: 0 | K17: 0 | M17: 412 | N17: 1,576 | P17: 0 | Q17: 0 | S17: 0 | T17: 0 | V17: 0 | W17: 0 | Y17: 412 | Z17: 1,576 | AA17: 1,988
A18: 01 | B18: Atlántida | C18: 01 | D18: LA CEIBA | E18: 04 | F18: Corozal | G18: 010100145 | H18: MARIANO GARCIA ARZU | I18: COROZAL | J18: 0 | K18: 0 | M18: 216 | N18: 162 | P18: 0 | Q18: 0 | S18: 0 | T18: 0 | V18: 0 | W18: 0 | Y18: 216 | Z18: 162 | AA18: 378
A19: 01 | B19: Atlántida | C19: 01 | D19: LA CEIBA | E19: 01 | F19: La Ceiba | G19: 010100148 | H19: INSTITUTO OFICIAL NOCTURNO VICTORIA CONTRERAS | I19: BARRIO SIERRA PINA | J19: 0 | K19: 0 | M19: 283 | N19: 226 | P19: 0 | Q19: 0 | S19: 0 | T19: 0 | V19: 0 | W19: 0 | Y19: 283 | Z19: 226 | AA19: 509
A20: 01 | B20: Atlántida | C20: 01 | D20: LA CEIBA | E20: 17 | F20: Sambo Creek | G20: 010100208 | H20: INSTITUTO OFICIAL SATUYE | I20: SAMBO CREEK | J20: 0 | K20: 0 | M20: 149 | N20: 96 | P20: 0 | Q20: 0 | S20: 26 | T20: 24 | V20: 0 | W20: 0 | Y20: 175 | Z20: 120 | AA20: 295
A21: 01 | B21: Atlántida | C21: 01 | D21: LA CEIBA | E21: 09 | F21: El Pital | G21: 010100209 | H21: ELVIRA PINEDA MADRID | I21: CUENCA DEL CANGREJAL, EL PITAL | J21: 0 | K21: 0 | M21: 88 | N21: 97 | P21: 0 | Q21: 0 | S21: 0 | T21: 0 | V21: 0 | W21: 0 | Y21: 88 | Z21: 97 | AA21: 185
A22: 01 | B22: Atlántida | C22: 01 | D22: LA CEIBA | E22: 01 | F22: La Ceiba | G22: 010100289 | H22: LA CEIBA | I22: BULEVAR 15 DE SEPTIEMBRE | J22: 0 | K22: 0 | M22: 453 | N22: 328 | P22: 0 | Q22: 0 | S22: 0 | T22: 0 | V22: 0 | W22: 0 | Y22: 453 | Z22: 328 | AA22: 781
A23: 01 | B23: Atlántida | C23: 02 | D23: El Porvenir | E23: 07 | F23: El Gancho | G23: 010200011 | H23: MARCO AURELIO SOTO | I23: LOS CACERES | J23: 24 | K23: 36 | M23: 0 | N23: 0 | P23: 0 | Q23: 0 | S23: 0 | T23: 0 | V23: 0 | W23: 0 | Y23: 24 | Z23: 36 | AA23: 60
A24: 01 | B24: Atlántida | C24: 02 | D24: El Porvenir | E24: 08 | F24: El Pino | G24: 010200014 | H24: NARCISO HERNANDEZ | I24: EL PINO, COL 9 DE JULIO | J24: 22 | K24: 30 | M24: 0 | N24: 0 | P24: 0 | Q24: 0 | S24: 0 | T24: 0 | V24: 0 | W24: 0 | Y24: 22 | Z24: 30 | AA24: 52
A25: 01 | B25: Atlántida | C25: 02 | D25: El Porvenir | E25: 01 | F25: El Porvenir | G25: 010200026 | H25: EL PORVENIR | I25: Barrio Nuevo | J25: 0 | K25: 0 | M25: 298 | N25: 291 | P25: 0 | Q25: 0 | S25: 0 | T25: 0 | V25: 0 | W25: 0 | Y25: 298 | Z25: 291 | AA25: 589
A26: 01 | B26: Atlántida | C26: 02 | D26: El Porvenir | E26: 10 | F26: La Unión | G26: 010200027 | H26: JOSE MANUEL DIAZ PALMA | I26: LA UNION, BETANCOUR FRENTE COL. EL DIAMANTE | J26: 0 | K26: 0 | M26: 180 | N26: 157 | P26: 0 | Q26: 0 | S26: 0 | T26: 0 | V26: 0 | W26: 0 | Y26: 180 | Z26: 157 | AA26: 337
A27: 01 | B27: Atlántida | C27: 02 | D27: El Porvenir | E27: 08 | F27: El Pino | G27: 010200028 | H27: RAFAEL PINEDA PONCE | I27: Barrio San Jose | J27: 0 | K27: 0 | M27: 294 | N27: 228 | P27: 55 | Q27: 26 | S27: 36 | T27: 37 | V27: 0 | W27: 0 | Y27: 385 | Z27: 291 | AA27: 676
A28: 01 | B28: Atlántida | C28: 02 | D28: El Porvenir | E28: 07 | F28: El Gancho | G28: 010200035 | H28: CEB HERIBERTO FLORES LAGOS | I28: ALDEA EL GANCHO | J28: 31 | K28: 27 | M28: 0 | N28: 0 | P28: 0 | Q28: 0 | S28: 0 | T28: 0 | V28: 0 | W28: 0 | Y28: 31 | Z28: 27 | AA28: 58
A29: 01 | B29: Atlántida | C29: 03 | D29: Esparta | E29: 14 | F29: La Libertad | G29: 010300024 | H29: RAFAEL BARDALES BUESO | I29: LA LIBERTAD | J29: 26 | K29: 20 | M29: 0 | N29: 0 | P29: 0 | Q29: 0 | S29: 0 | T29: 0 | V29: 0 | W29: 0 | Y29: 26 | Z29: 20 | AA29: 46
A30: 01 | B30: Atlántida | C30: 03 | D30: Esparta | E30: 20 | F30: Lombardía o La Curva | G30: 010300026 | H30: ESTEBAN GUARDIOLA | I30: LOMBARDIA | J30: 60 | K30: 56 | M30: 0 | N30: 0 | P30: 0 | Q30: 0 | S30: 0 | T30: 0 | V30: 0 | W30: 0 | Y30: 60 | Z30: 56 | AA30: 116
A31: 01 | B31: Atlántida | C31: 03 | D31: Esparta | E31: 20 | F31: Lombardía o La Curva | G31: 010300026 | H31: ESTEBAN GUARDIOLA | I31: LOMBARDIA | J31: 0 | K31: 0 | M31: 19 | N31: 15 | P31: 0 | Q31: 0 | S31: 0 | T31: 0 | V31: 0 | W31: 0 | Y31: 19 | Z31: 15 | AA31: 34
A32: 01 | B32: Atlántida | C32: 03 | D32: Esparta | E32: 19 | F32: Las Flores de Leán | G32: 010300031 | H32: JOSE TRINIDAD CABAÑAS | I32: FLORES DE LEAN | J32: 26 | K32: 27 | M32: 0 | N32: 0 | P32: 0 | Q32: 0 | S32: 0 | T32: 0 | V32: 0 | W32: 0 | Y32: 26 | Z32: 27 | AA32: 53
A33: 01 | B33: Atlántida | C33: 03 | D33: Esparta | E33: 07 | F33: Ceibita Way | G33: 010300032 | H33: RAMON ROSA | I33: CEIBITA WAY | J33: 0 | K33: 0 | M33: 29 | N33: 26 | P33: 0 | Q33: 0 | S33: 0 | T33: 0 | V33: 0 | W33: 0 | Y33: 29 | Z33: 26 | AA33: 55
A34: 01 | B34: Atlántida | C34: 03 | D34: Esparta | E34: 07 | F34: Ceibita Way | G34: 010300032 | H34: RAMON ROSA | I34: CEIBITA WAY | J34: 52 | K34: 51 | M34: 0 | N34: 0 | P34: 0 | Q34: 0 | S34: 0 | T34: 0 | V34: 0 | W34: 0 | Y34: 52 | Z34: 51 | AA34: 103
A35: 01 | B35: Atlántida | C35: 03 | D35: Esparta | E35: 01 | F35: Esparta | G35: 010300046 | H35: JACOBO P. MUNGUIA | I35: BARRIO LEMPIRA, ESPARTA | J35: 0 | K35: 0 | M35: 154 | N35: 132 | P35: 0 | Q35: 0 | S35: 228 | T35: 239 | V35: 0 | W35: 0 | Y35: 382 | Z35: 371 | AA35: 753
A36: 01 | B36: Atlántida | C36: 04 | D36: Jutiapa | E36: 01 | F36: Jutiapa | G36: 010400001 | H36: REPUBLICA DE VENEZUELA | I36: JUTIAPA, BARRIO LEMPIRA | J36: 0 | K36: 0 | M36: 422 | N36: 333 | P36: 0 | Q36: 0 | S36: 807 | T36: 689 | V36: 0 | W36: 0 | Y36: 1,229 | Z36: 1,022 | AA36: 2,251
A37: 01 | B37: Atlántida | C37: 04 | D37: Jutiapa | E37: 31 | F37: Tomalá | G37: 010400008 | H37: SAGRADO CORAZON | I37: TOMALA | J37: 0 | K37: 0 | M37: 38 | N37: 16 | P37: 0 | Q37: 0 | S37: 0 | T37: 0 | V37: 0 | W37: 0 | Y37: 38 | Z37: 16 | AA37: 54
A38: 01 | B38: Atlántida | C38: 04 | D38: Jutiapa | E38: 31 | F38: Tomalá | G38: 010400008 | H38: SAGRADO CORAZON | I38: TOMALA | J38: 42 | K38: 31 | M38: 0 | N38: 0 | P38: 0 | Q38: 0 | S38: 0 | T38: 0 | V38: 0 | W38: 0 | Y38: 42 | Z38: 31 | AA38: 73
A39: 01 | B39: Atlántida | C39: 04 | D39: Jutiapa | E39: 25 | F39: Roma | G39: 010400010 | H39: 15 DE SEPTIEMBRE | I39: ALDEA DE ROMA | J39: 38 | K39: 40 | M39: 0 | N39: 0 | P39: 0 | Q39: 0 | S39: 0 | T39: 0 | V39: 0 | W39: 0 | Y39: 38 | Z39: 40 | AA39: 78
A40: 01 | B40: Atlántida | C40: 04 | D40: Jutiapa | E40: 21 | F40: Nueva Armenia | G40: 010400011 | H40: VISITACION PADILLA | I40: NUEVA ARMENIA | J40: 44 | K40: 35 | M40: 0 | N40: 0 | P40: 0 | Q40: 0 | S40: 0 | T40: 0 | V40: 0 | W40: 0 | Y40: 44 | Z40: 35 | AA40: 79
A41: 01 | B41: Atlántida | C41: 04 | D41: Jutiapa | E41: 07 | F41: Descombros | G41: 010400015 | H41: RENOVACION | I41: DESCOMBROS | J41: 61 | K41: 48 | M41: 0 | N41: 0 | P41: 0 | Q41: 0 | S41: 0 | T41: 0 | V41: 0 | W41: 0 | Y41: 61 | Z41: 48 | AA41: 109
A42: 01 | B42: Atlántida | C42: 04 | D42: Jutiapa | E42: 16 | F42: Ilamapa | G42: 010400016 | H42: JOSE CECILIO DEL VALLE | I42: ILAMAPA, BARRIO EL CENTRO | J42: 34 | K42: 38 | M42: 0 | N42: 0 | P42: 0 | Q42: 0 | S42: 0 | T42: 0 | V42: 0 | W42: 0 | Y42: 34 | Z42: 38 | AA42: 72
A43: 01 | B43: Atlántida | C43: 04 | D43: Jutiapa | E43: 23 | F43: Piedras Amarillas | G43: 010400041 | H43: JOSE TRINIDAD REYES | I43: PIEDRA AMARILLAS | J43: 77 | K43: 57 | M43: 0 | N43: 0 | P43: 0 | Q43: 0 | S43: 0 | T43: 0 | V43: 0 | W43: 0 | Y43: 77 | Z43: 57 | AA43: 134
A44: 01 | B44: Atlántida | C44: 04 | D44: Jutiapa | E44: 18 | F44: La Bomba | G44: 010400067 | H44: MARCO ANTONIO PONCE | I44: LA BOMBA | J44: 49 | K44: 39 | M44: 0 | N44: 0 | P44: 0 | Q44: 0 | S44: 0 | T44: 0 | V44: 0 | W44: 0 | Y44: 49 | Z44: 39 | AA44: 88
A45: 01 | B45: Atlántida | C45: 04 | D45: Jutiapa | E45: 15 | F45: Entelina | G45: 010400069 | H45: INDEPENDENCIA | I45: ENTELINA | J45: 23 | K45: 24 | M45: 0 | N45: 0 | P45: 0 | Q45: 0 | S45: 0 | T45: 0 | V45: 0 | W45: 0 | Y45: 23 | Z45: 24 | AA45: 47
A46: 01 | B46: Atlántida | C46: 05 | D46: La Masica | E46: 07 | F46: El Naranjal | G46: 010500013 | H46: MINERVA | I46: EL NARANJAL | J46: 68 | K46: 81 | M46: 0 | N46: 0 | P46: 0 | Q46: 0 | S46: 0 | T46: 0 | V46: 0 | W46: 0 | Y46: 68 | Z46: 81 | AA46: 149
A47: 01 | B47: Atlántida | C47: 05 | D47: La Masica | E47: 13 | F47: San Juan Benque | G47: 010500015 | H47: JOSE TRINIDAD CABAÐAS | I47: SAN JUAN BENQUE | J47: 0 | K47: 0 | M47: 15 | N47: 16 | P47: 0 | Q47: 0 | S47: 0 | T47: 0 | V47: 0 | W47: 0 | Y47: 15 | Z47: 16 | AA47: 31
A48: 01 | B48: Atlántida | C48: 05 | D48: La Masica | E48: 13 | F48: San Juan Benque | G48: 010500015 | H48: JOSE TRINIDAD CABAÐAS | I48: SAN JUAN BENQUE | J48: 30 | K48: 20 | M48: 0 | N48: 0 | P48: 0 | Q48: 0 | S48: 0 | T48: 0 | V48: 0 | W48: 0 | Y48: 30 | Z48: 20 | AA48: 50
A49: 01 | B49: Atlántida | C49: 05 | D49: La Masica | E49: 01 | F49: San Francisco | G49: 010500056 | H49: GONZALO G. RODRIGUEZ | I49: BARRIO EL CENTRO | J49: 0 | K49: 0 | M49: 491 | N49: 435 | P49: 0 | Q49: 0 | S49: 0 | T49: 0 | V49: 0 | W49: 0 | Y49: 491 | Z49: 435 | AA49: 926
A50: 01 | B50: Atlántida | C50: 05 | D50: La Masica | E50: 14 | F50: San Juan Pueblo | G50: 010500057 | H50: MARCELINO PONCE MARTINEZ | I50: SAN JUAN PUEBLO | J50: 0 | K50: 0 | M50: 232 | N50: 245 | P50: 0 | Q50: 0 | S50: 0 | T50: 0 | V50: 0 | W50: 0 | Y50: 232 | Z50: 245 | AA50: 477
A51: 01 | B51: Atlántida | C51: 05 | D51: La Masica | E51: 14 | F51: San Juan Pueblo | G51: 010500058 | H51: PERLA DE SAN JUAN | I51: JUAN PUEBLO | J51: 0 | K51: 0 | M51: 521 | N51: 386 | P51: 0 | Q51: 0 | S51: 308 | T51: 313 | V51: 0 | W51: 0 | Y51: 829 | Z51: 699 | AA51: 1,528
A52: 01 | B52: Atlántida | C52: 06 | D52: San Francisco | E52: 01 | F52: San Francisco | G52: 010600020 | H52: SAN FRANCISCO DE ASIS | I52: SAN FRANCISCO | J52: 0 | K52: 0 | M52: 262 | N52: 227 | P52: 0 | Q52: 0 | S52: 0 | T52: 0 | V52: 0 | W52: 0 | Y52: 262 | Z52: 227 | AA52: 489
A53: 01 | B53: Atlántida | C53: 06 | D53: San Francisco | E53: 10 | F53: Santa Ana | G53: 010600021 | H53: AGRICOLA JHON F. KENNEDY | I53: EL TRIANGULO | J53: 0 | K53: 0 | M53: 10 | N53: 211 | P53: 0 | Q53: 0 | S53: 0 | T53: 0 | V53: 0 | W53: 0 | Y53: 10 | Z53: 211 | AA53: 221
A54: 01 | B54: Atlántida | C54: 06 | D54: San Francisco | E54: 10 | F54: Santa Ana | G54: 010600022 | H54: JOSE ROSARIO BONANO | I54: SANTA ANA | J54: 0 | K54: 0 | M54: 332 | N54: 301 | P54: 0 | Q54: 0 | S54: 0 | T54: 0 | V54: 0 | W54: 0 | Y54: 332 | Z54: 301 | AA54: 633
A55: 01 | B55: Atlántida | C55: 07 | D55: Tela | E55: 01 | F55: Tela | G55: 010700003 | H55: FRANCISCO MORAZAN | I55: EL CENTRO | J55: 129 | K55: 105 | M55: 0 | N55: 0 | P55: 0 | Q55: 0 | S55: 0 | T55: 0 | V55: 0 | W55: 0 | Y55: 129 | Z55: 105 | AA55: 234
A56: 01 | B56: Atlántida | C56: 07 | D56: Tela | E56: 01 | F56: Tela | G56: 010700009 | H56: ANTONIO JOSE COELLO | I56: BARRIO SAN JOSE | J56: 53 | K56: 59 | M56: 0 | N56: 0 | P56: 0 | Q56: 0 | S56: 0 | T56: 0 | V56: 0 | W56: 0 | Y56: 53 | Z56: 59 | AA56: 112
A57: 01 | B57: Atlántida | C57: 07 | D57: Tela | E57: 01 | F57: Tela | G57: 010700011 | H57: LEMPIRA | I57: BARRIO LEMPIRA | J57: 47 | K57: 46 | M57: 0 | N57: 0 | P57: 0 | Q57: 0 | S57: 0 | T57: 0 | V57: 0 | W57: 0 | Y57: 47 | Z57: 46 | AA57: 93
A58: 01 | B58: Atlántida | C58: 07 | D58: Tela | E58: 01 | F58: Tela | G58: 010700013 | H58: DR MIGUEL PAZ BARAHONA | I58: EL CENTRO | J58: 44 | K58: 49 | M58: 0 | N58: 0 | P58: 0 | Q58: 0 | S58: 0 | T58: 0 | V58: 0 | W58: 0 | Y58: 44 | Z58: 49 | AA58: 93
A59: 01 | B59: Atlántida | C59: 07 | D59: Tela | E59: 28 | F59: Tela | G59: 010700017 | H59: ESTEBAN GUARDIOLA | I59: EL TRIUNFO DE LA CRUZ | J59: 100 | K59: 73 | M59: 0 | N59: 0 | P59: 0 | Q59: 0 | S59: 0 | T59: 0 | V59: 0 | W59: 0 | Y59: 100 | Z59: 73 | AA59: 173
A60: 01 | B60: Atlántida | C60: 07 | D60: Tela | E60: 74 | F60: Tornabé | G60: 010700018 | H60: MARCO AURELIO SOTO | I60: TORNABE | J60: 81 | K60: 60 | M60: 0 | N60: 0 | P60: 0 | Q60: 0 | S60: 0 | T60: 0 | V60: 0 | W60: 0 | Y60: 81 | Z60: 60 | AA60: 141
A61: 01 | B61: Atlántida | C61: 07 | D61: Tela | E61: 02 | F61: Agua Blanca | G61: 010700030 | H61: JOSE TRINIDAD CABAÑAS | I61: AGUA BLANCA | J61: 18 | K61: 14 | M61: 0 | N61: 0 | P61: 0 | Q61: 0 | S61: 0 | T61: 0 | V61: 0 | W61: 0 | Y61: 18 | Z61: 14 | AA61: 32
A62: 01 | B62: Atlántida | C62: 07 | D62: Tela | E62: 33 | F62: La Esperanza | G62: 010700034 | H62: MANUEL BONILLA | I62: LA ESPERANZA | J62: 51 | K62: 42 | M62: 0 | N62: 0 | P62: 0 | Q62: 0 | S62: 0 | T62: 0 | V62: 0 | W62: 0 | Y62: 51 | Z62: 42 | AA62: 93
A63: 01 | B63: Atlántida | C63: 07 | D63: Tela | E63: 22 | F63: El Guano | G63: 010700038 | H63: PABLO ZELAYA SIERRA | I63: EL GUANO | J63: 42 | K63: 34 | M63: 0 | N63: 0 | P63: 0 | Q63: 0 | S63: 0 | T63: 0 | V63: 0 | W63: 0 | Y63: 42 | Z63: 34 | AA63: 76
A64: 01 | B64: Atlántida | C64: 07 | D64: Tela | E64: 75 | F64: Villafranca | G64: 010700041 | H64: JOSE TRINIDAD REYES | I64: VILLA FRANCA | J64: 48 | K64: 39 | M64: 0 | N64: 0 | P64: 0 | Q64: 0 | S64: 0 | T64: 0 | V64: 0 | W64: 0 | Y64: 48 | Z64: 39 | AA64: 87
A65: 01 | B65: Atlántida | C65: 07 | D65: Tela | E65: 40 | F65: Las Delicias No.1 | G65: 010700044 | H65: NATIVIDAD MENDOZA | I65: LAS DELICIAS | J65: 46 | K65: 45 | M65: 0 | N65: 0 | P65: 0 | Q65: 0 | S65: 0 | T65: 0 | V65: 0 | W65: 0 | Y65: 46 | Z65: 45 | AA65: 91
A66: 01 | B66: Atlántida | C66: 07 | D66: Tela | E66: 01 | F66: Tela | G66: 010700047 | H66: MAESTROS JUBILADOS | I66: BARRIO VENECIA | J66: 77 | K66: 72 | M66: 0 | N66: 0 | P66: 0 | Q66: 0 | S66: 0 | T66: 0 | V66: 0 | W66: 0 | Y66: 77 | Z66: 72 | AA66: 149
A67: 01 | B67: Atlántida | C67: 07 | D67: Tela | E67: 72 | F67: Toloa Adentro | G67: 010700063 | H67: SIMON BOLIVAR | I67: TOLOA ADENTRO | J67: 32 | K67: 17 | M67: 0 | N67: 0 | P67: 0 | Q67: 0 | S67: 0 | T67: 0 | V67: 0 | W67: 0 | Y67: 32 | Z67: 17 | AA67: 49
A68: 01 | B68: Atlántida | C68: 07 | D68: Tela | E68: 61 | F68: Procón | G68: 010700070 | H68: LA INSTRUCCION | I68: PROCON | J68: 23 | K68: 21 | M68: 0 | N68: 0 | P68: 0 | Q68: 0 | S68: 0 | T68: 0 | V68: 0 | W68: 0 | Y68: =J68+M68+P68+S68+V68 -> 23 | Z68: =K68+N68+Q68+T68+W68 -> 21 | AA68: =Y68+Z68 -> 44
A69: 01 | B69: Atlántida | C69: 07 | D69: Tela | E69: 57 | F69: Paujiles | G69: 010700109 | H69: VISITACION PADILLA | I69: PAUJILES | J69: 62 | K69: 59 | M69: 0 | N69: 0 | P69: 0 | Q69: 0 | S69: 0 | T69: 0 | V69: 0 | W69: 0 | Y69: 62 | Z69: 59 | AA69: 121
A70: 01 | B70: Atlántida | C70: 07 | D70: Tela | E70: 01 | F70: Tela | G70: 010700110 | H70: JOHN F. KENNEDY | I70: BARRIO HILAN CREECK | J70: 110 | K70: 98 | M70: 0 | N70: 0 | P70: 0 | Q70: 0 | S70: 0 | T70: 0 | V70: 0 | W70: 0 | Y70: 110 | Z70: 98 | AA70: 208
A71: 01 | B71: Atlántida | C71: 07 | D71: Tela | E71: 01 | F71: Tela | G71: 010700127 | H71: BENJAMIN MUNGUIA | I71: COL GRANT | J71: 32 | K71: 23 | M71: 0 | N71: 0 | P71: 0 | Q71: 0 | S71: 0 | T71: 0 | V71: 0 | W71: 0 | Y71: 32 | Z71: 23 | AA71: 55
A72: 01 | B72: Atlántida | C72: 07 | D72: Tela | E72: 01 | F72: Tela | G72: 010700163 | H72: ESCUELA NORMAL MIXTA DEL LITORAL ATLANTICO | I72: COLONIA SITRATERCO | J72: 0 | K72: 0 | M72: 1,047 | N72: 400 | P72: 0 | Q72: 0 | S72: 0 | T72: 0 | V72: 0 | W72: 0 | Y72: 1,047 | Z72: 400 | AA72: 1,447
A73: 01 | B73: Atlántida | C73: 07 | D73: Tela | E73: 70 | F73: Santiago | G73: 010700165 | H73: RAFAEL PINEDA PONCE | I73: SANTIAGO | J73: 0 | K73: 0 | M73: 100 | N73: 85 | P73: 0 | Q73: 0 | S73: 0 | T73: 0 | V73: 0 | W73: 0 | Y73: 100 | Z73: 85 | AA73: 185
A74: 01 | B74: Atlántida | C74: 07 | D74: Tela | E74: 50 | F74: Mezapa o Santa Rosa del Norte | G74: 010700166 | H74: CELESTINO CANALES SIERRA | I74: SANTA ROSA DEL N. COL MUNICIPAL | J74: 0 | K74: 0 | M74: 343 | N74: 267 | P74: 0 | Q74: 0 | S74: 0 | T74: 0 | V74: 0 | W74: 0 | Y74: 343 | Z74: 267 | AA74: 610
A75: 01 | B75: Atlántida | C75: 07 | D75: Tela | E75: 64 | F75: San Alejo | G75: 010700168 | H75: TULIO EDGARDO MEMBREÑO | I75: SAN ALEJO KM 15 | J75: 0 | K75: 0 | M75: 260 | N75: 208 | P75: 0 | Q75: 0 | S75: 357 | T75: 365 | V75: 0 | W75: 0 | Y75: 617 | Z75: 573 | AA75: 1,190
A76: 01 | B76: Atlántida | C76: 07 | D76: Tela | E76: 01 | F76: Tela | G76: 010700173 | H76: INSTITUTO TRIUNFO DE LA CRUZ | I76: COLONIA SAN ALEJO | J76: 0 | K76: 0 | M76: 1,316 | N76: 1,084 | P76: 211 | Q76: 99 | S76: 0 | T76: 0 | V76: 0 | W76: 0 | Y76: 1,527 | Z76: 1,183 | AA76: 2,710
A77: 01 | B77: Atlántida | C77: 08 | D77: Arizona | E77: 19 | F77: Mezapita | G77: 010800007 | H77: RAFAEL HELIODORO VALLE | I77: MEZAPITA | J77: 46 | K77: 49 | M77: 0 | N77: 0 | P77: 0 | Q77: 0 | S77: 0 | T77: 0 | V77: 0 | W77: 0 | Y77: 46 | Z77: 49 | AA77: 95
A78: 01 | B78: Atlántida | C78: 08 | D78: Arizona | E78: 14 | F78: La Libertad | G78: 010800020 | H78: MANUEL BONILLA | I78: JILAMO NUEVO | J78: 62 | K78: 46 | M78: 0 | N78: 0 | P78: 0 | Q78: 0 | S78: 0 | T78: 0 | V78: 0 | W78: 0 | Y78: 62 | Z78: 46 | AA78: 108
A79: 01 | B79: Atlántida | C79: 08 | D79: Arizona | E79: 22 | F79: San Francisco de Saco | G79: 010800021 | H79: JOSE TRINIDAD REYES | I79: SAN FRANCISCO DE SACO | J79: 61 | K79: 39 | M79: 0 | N79: 0 | P79: 0 | Q79: 0 | S79: 0 | T79: 0 | V79: 0 | W79: 0 | Y79: 61 | Z79: 39 | AA79: 100
A80: 01 | B80: Atlántida | C80: 08 | D80: Arizona | E80: 25 | F80: Santa María | G80: 010800023 | H80: LEMPIRA | I80: SANTA MARIA | J80: 41 | K80: 36 | M80: 0 | N80: 0 | P80: 0 | Q80: 0 | S80: 0 | T80: 0 | V80: 0 | W80: 0 | Y80: 41 | Z80: 36 | AA80: 77
A81: 01 | B81: Atlántida | C81: 08 | D81: Arizona | E81: 27 | F81: Suyapa de Leán o Mataras | G81: 010800024 | H81: LUIS LANDA | I81: MATARRAS | J81: 32 | K81: 35 | M81: 0 | N81: 0 | P81: 0 | Q81: 0 | S81: 0 | T81: 0 | V81: 0 | W81: 0 | Y81: 32 | Z81: 35 | AA81: 67
A82: 01 | B82: Atlántida | C82: 08 | D82: Arizona | E82: 01 | F82: Esparta | G82: 010800040 | H82: SUPERACION DEL VALLE LEAN | I82: ARIZONA, COLONIA GRACIAS A DIOS | J82: 0 | K82: 0 | M82: 216 | N82: 137 | P82: 45 | Q82: 44 | S82: 0 | T82: 0 | V82: 0 | W82: 0 | Y82: 261 | Z82: 181 | AA82: 442
A83: 01 | B83: Atlántida | C83: 08 | D83: Arizona | E83: 03 | F83: Atenas de San Cristóbal o Km. | G83: 010800041 | H83: ARTURO ALVAREZ CALDERON | I83: ATENAS, SAN CRIST | J83: 0 | K83: 0 | M83: 167 | N83: 169 | P83: 0 | Q83: 0 | S83: 0 | T83: 0 | V83: 0 | W83: 0 | Y83: 167 | Z83: 169 | AA83: 336
A84: 01 | B84: Atlántida | C84: 08 | D84: Arizona | E84: 18 | F84: Mezapa | G84: 010800042 | H84: JUAN ANTONIO PINEDA | I84: MEZAPA | J84: 0 | K84: 0 | M84: 127 | N84: 130 | P84: 0 | Q84: 0 | S84: 59 | T84: 55 | V84: 0 | W84: 0 | Y84: 186 | Z84: 185 | AA84: 371
A85: 02 | B85: Colón | C85: 01 | D85: Trujillo | E85: 08 | F85: Puerto Castilla | G85: 020100015 | H85: 14 DE AGOSTO | I85: PUERTO CASTILLA | J85: 49 | K85: 40 | M85: 0 | N85: 0 | P85: 0 | Q85: 0 | S85: 0 | T85: 0 | V85: 0 | W85: 0 | Y85: 49 | Z85: 40 | AA85: 89
A86: 02 | B86: Colón | C86: 01 | D86: Trujillo | E86: 05 | F86: Ilanga | G86: 020100023 | H86: SAN JUAN BOSCO | I86: CHACALAPA | J86: 33 | K86: 19 | M86: 0 | N86: 0 | P86: 0 | Q86: 0 | S86: 0 | T86: 0 | V86: 0 | W86: 0 | Y86: 33 | Z86: 19 | AA86: 52
A87: 02 | B87: Colón | C87: 01 | D87: Trujillo | E87: 05 | F87: Ilanga | G87: 020100041 | H87: BENITO JUAREZ | I87: RIGORES | J87: 81 | K87: 73 | M87: 0 | N87: 0 | P87: 0 | Q87: 0 | S87: 0 | T87: 0 | V87: 0 | W87: 0 | Y87: 81 | Z87: 73 | AA87: 154
A88: 02 | B88: Colón | C88: 01 | D88: Trujillo | E88: 09 | F88: Trujillo | G88: 020100043 | H88: EL DESPERTAR | I88: SANTA LUCIA | J88: 73 | K88: 81 | M88: 0 | N88: 0 | P88: 0 | Q88: 0 | S88: 0 | T88: 0 | V88: 0 | W88: 0 | Y88: 73 | Z88: 81 | AA88: 154
A89: 02 | B89: Colón | C89: 01 | D89: Trujillo | E89: 08 | F89: Trujillo | G89: 020100051 | H89: JAIRO AYALA | I89: GUADALUPE CARNEY | J89: 53 | K89: 65 | M89: 0 | N89: 0 | P89: 0 | Q89: 0 | S89: 0 | T89: 0 | V89: 0 | W89: 0 | Y89: 53 | Z89: 65 | AA89: 118
A90: 02 | B90: Colón | C90: 01 | D90: Trujillo | E90: 06 | F90: Trujillo | G90: 020100059 | H90: 18 DE MAYO | I90: CAPIRO | J90: 56 | K90: 38 | M90: 0 | N90: 0 | P90: 0 | Q90: 0 | S90: 0 | T90: 0 | V90: 0 | W90: 0 | Y90: 56 | Z90: 38 | AA90: 94
A91: 02 | B91: Colón | C91: 01 | D91: Trujillo | E91: 03 | F91: Chapagua | G91: 020100060 | H91: 13 DE MAYO | I91: COOPERATIVA 25 DE ABRIL | J91: 72 | K91: 65 | M91: 0 | N91: 0 | P91: 0 | Q91: 0 | S91: 0 | T91: 0 | V91: 0 | W91: 0 | Y91: 72 | Z91: 65 | AA91: 137
A92: 02 | B92: Colón | C92: 01 | D92: Trujillo | E92: 01 | F92: Trujillo | G92: 020100092 | H92: MATILDE CORDOVA DE SUAZO | I92: COLONIA EDUARDO CASTILLO, CALLE PRINCIPAL | J92: 168 | K92: 83 | M92: 0 | N92: 0 | P92: 0 | Q92: 0 | S92: 0 | T92: 0 | V92: 0 | W92: 0 | Y92: 168 | Z92: 83 | AA92: 251
A93: 02 | B93: Colón | C93: 01 | D93: Trujillo | E93: 01 | F93: Trujillo | G93: 020100092 | H93: MATILDE CORDOVA DE SUAZO | I93: COLONIA EDUARDO CASTILLO, CALLE PRINCIPAL | J93: 0 | K93: 0 | M93: 1,161 | N93: 461 | P93: 0 | Q93: 0 | S93: 0 | T93: 0 | V93: 0 | W93: 0 | Y93: 1,161 | Z93: 461 | AA93: 1,622
A94: 02 | B94: Colón | C94: 01 | D94: Trujillo | E94: 05 | F94: Ilanga | G94: 020100093 | H94: MODESTO RODAS ALVARADO | I94: ILANGA | J94: 0 | K94: 0 | M94: 266 | N94: 276 | P94: 86 | Q94: 64 | S94: 0 | T94: 0 | V94: 0 | W94: 0 | Y94: 352 | Z94: 340 | AA94: 692
A95: 02 | B95: Colón | C95: 01 | D95: Trujillo | E95: 01 | F95: Trujillo | G95: 020100094 | H95: ESPIRITU DEL SIGLO | I95: BARRIO BUENOS AIR | J95: 0 | K95: 0 | M95: 631 | N95: 550 | P95: 128 | Q95: 72 | S95: 0 | T95: 0 | V95: 0 | W95: 0 | Y95: 759 | Z95: 622 | AA95: 1,381
A96: 02 | B96: Colón | C96: 01 | D96: Trujillo | E96: 09 | F96: Tarros | G96: 020100095 | H96: FRANCISCO MORAZAN | I96: COOPERATIVA HONDURAS AGRICOLA | J96: 0 | K96: 0 | M96: 245 | N96: 230 | P96: 0 | Q96: 0 | S96: 0 | T96: 0 | V96: 0 | W96: 0 | Y96: 245 | Z96: 230 | AA96: 475
A97: 02 | B97: Colón | C97: 01 | D97: Trujillo | E97: 07 | F97: La Brea | G97: 020100105 | H97: OSCAR RAMON NAJERA | I97: LA BREA | J97: 0 | K97: 0 | M97: 116 | N97: 105 | P97: 0 | Q97: 0 | S97: 0 | T97: 0 | V97: 0 | W97: 0 | Y97: 116 | Z97: 105 | AA97: 221
A98: 02 | B98: Colón | C98: 01 | D98: Trujillo | E98: 05 | F98: Ilanga | G98: 020100110 | H98: CLAUDINA AGUILAR OCHOA | I98: EL COCO | J98: 53 | K98: 46 | M98: 0 | N98: 0 | P98: 0 | Q98: 0 | S98: 0 | T98: 0 | V98: 0 | W98: 0 | Y98: 53 | Z98: 46 | AA98: 99
A99: 02 | B99: Colón | C99: 02 | D99: Balfate | E99: 16 | F99: Río Coco | G99: 020200008 | H99: ATENEA | I99: RIO COCO | J99: 28 | K99: 17 | M99: 0 | N99: 0 | P99: 0 | Q99: 0 | S99: 0 | T99: 0 | V99: 0 | W99: 0 | Y99: 28 | Z99: 17 | AA99: 45
A100: 02 | B100: Colón | C100: 02 | D100: Balfate | E100: 05 | F100: El Cenizo | G100: 020200012 | H100: LUZ DEL ATLANTICO | I100: CENIZO | J100: 17 | K100: 8 | M100: 0 | N100: 0 | P100: 0 | Q100: 0 | S100: 0 | T100: 0 | V100: 0 | W100: 0 | Y100: 17 | Z100: 8 | AA100: 25
A101: 02 | B101: Colón | C101: 02 | D101: Balfate | E101: 13 | F101: Lis Lis | G101: 020200013 | H101: PRIMAVERA | I101: LIS LIS | J101: 28 | K101: 19 | M101: 0 | N101: 0 | P101: 0 | Q101: 0 | S101: 0 | T101: 0 | V101: 0 | W101: 0 | Y101: 28 | Z101: 19 | AA101: 47
A102: 02 | B102: Colón | C102: 02 | D102: Balfate | E102: 12 | F102: Limera | G102: 020200015 | H102: JUANLINDO | I102: LIMERA | J102: 39 | K102: 24 | M102: 0 | N102: 0 | P102: 0 | Q102: 0 | S102: 0 | T102: 0 | V102: 0 | W102: 0 | Y102: 39 | Z102: 24 | AA102: 63
A103: 02 | B103: Colón | C103: 02 | D103: Balfate | E103: 17 | F103: Río Esteban | G103: 020200023 | H103: RAFAEL LEONARDO CALLEJAS | I103: COLONIA GALLARDO | J103: 0 | K103: 0 | M103: 178 | N103: 120 | P103: 0 | Q103: 0 | S103: 0 | T103: 0 | V103: 0 | W103: 0 | Y103: 178 | Z103: 120 | AA103: 298
A104: 02 | B104: Colón | C104: 02 | D104: Balfate | E104: 01 | F104: Balfate | G104: 020200024 | H104: RAFAEL PINEDA PONCE | I104: BARRIO EL CENTRO | J104: 0 | K104: 0 | M104: 100 | N104: 93 | P104: 0 | Q104: 0 | S104: 0 | T104: 0 | V104: 0 | W104: 0 | Y104: 100 | Z104: 93 | AA104: 193
A105: 02 | B105: Colón | C105: 03 | D105: Iriona | E105: 03 | F105: Cusuna | G105: 020300001 | H105: RODOLFO ROJAS | I105: CUSUNA | J105: 63 | K105: 45 | M105: 0 | N105: 0 | P105: 0 | Q105: 0 | S105: 0 | T105: 0 | V105: 0 | W105: 0 | Y105: 63 | Z105: 45 | AA105: 108
A106: 02 | B106: Colón | C106: 03 | D106: Iriona | E106: 02 | F106: Ciriboya | G106: 020300003 | H106: ALVARO CONTRERAS | I106: CIRIBOYA | J106: 22 | K106: 39 | M106: 0 | N106: 0 | P106: 0 | Q106: 0 | S106: 0 | T106: 0 | V106: 0 | W106: 0 | Y106: 22 | Z106: 39 | AA106: 61
A107: 02 | B107: Colón | C107: 03 | D107: Iriona | E107: 10 | F107: Sico | G107: 020300009 | H107: RAMON ROSA | I107: SAMBITA | J107: 21 | K107: 18 | M107: 0 | N107: 0 | P107: 0 | Q107: 0 | S107: 0 | T107: 0 | V107: 0 | W107: 0 | Y107: 21 | Z107: 18 | AA107: 39
A108: 02 | B108: Colón | C108: 03 | D108: Iriona | E108: 10 | F108: Sico | G108: 020300010 | H108: LA FRATERNIDAD | I108: EL CASTILLO | J108: 33 | K108: 16 | M108: 0 | N108: 0 | P108: 0 | Q108: 0 | S108: 0 | T108: 0 | V108: 0 | W108: 0 | Y108: 33 | Z108: 16 | AA108: 49
A109: 02 | B109: Colón | C109: 03 | D109: Iriona | E109: 08 | F109: San José de La Punta | G109: 020300011 | H109: CARLOTA GONZALES V | I109: IRIONA | J109: 33 | K109: 44 | M109: 0 | N109: 0 | P109: 0 | Q109: 0 | S109: 0 | T109: 0 | V109: 0 | W109: 0 | Y109: 33 | Z109: 44 | AA109: 77
A110: 02 | B110: Colón | C110: 03 | D110: Iriona | E110: 11 | F110: Tocamacho | G110: 020300012 | H110: JUAN LINDO | I110: TOCAMACHO | J110: 60 | K110: 51 | M110: 0 | N110: 0 | P110: 0 | Q110: 0 | S110: 0 | T110: 0 | V110: 0 | W110: 0 | Y110: 60 | Z110: 51 | AA110: 111
A111: 02 | B111: Colón | C111: 03 | D111: Iriona | E111: 07 | F111: Punta de Piedra | G111: 020300015 | H111: JOSE CECILIO DEL VALLE | I111: PUNTA PIEDRA | J111: 65 | K111: 55 | M111: 0 | N111: 0 | P111: 0 | Q111: 0 | S111: 0 | T111: 0 | V111: 0 | W111: 0 | Y111: 65 | Z111: 55 | AA111: 120
A112: 02 | B112: Colón | C112: 03 | D112: Iriona | E112: 05 | F112: Las Champas u Ocotales | G112: 020300016 | H112: PRECENTACION CENTENO | I112: OCOTALES | J112: 52 | K112: 44 | M112: 0 | N112: 0 | P112: 0 | Q112: 0 | S112: 0 | T112: 0 | V112: 0 | W112: 0 | Y112: 52 | Z112: 44 | AA112: 96
A113: 02 | B113: Colón | C113: 03 | D113: Iriona | E113: 09 | F113: Sangrelaya | G113: 020300040 | H113: SAN PEDRO APOSTOL | I113: IRIONA | J113: 0 | K113: 0 | M113: 78 | N113: 80 | P113: 0 | Q113: 0 | S113: 0 | T113: 0 | V113: 0 | W113: 0 | Y113: 78 | Z113: 80 | AA113: 158
A114: 02 | B114: Colón | C114: 03 | D114: Iriona | E114: 10 | F114: Sico | G114: 020300041 | H114: FRANCISCO VELASQUES ARIAS | I114: IRIONA | J114: 0 | K114: 0 | M114: 69 | N114: 76 | P114: 0 | Q114: 0 | S114: 0 | T114: 0 | V114: 0 | W114: 0 | Y114: 69 | Z114: 76 | AA114: 145
A115: 02 | B115: Colón | C115: 03 | D115: Iriona | E115: 05 | F115: Las Champas u Ocotales | G115: 020300050 | H115: JUAN AMBROSIO SABIO CACHO | I115: Jardines de la Sierra | J115: 13 | K115: 18 | M115: 0 | N115: 0 | P115: 0 | Q115: 0 | S115: 0 | T115: 0 | V115: 0 | W115: 0 | Y115: 13 | Z115: 18 | AA115: 31
A116: 02 | B116: Colón | C116: 04 | D116: Limon | E116: 03 | F116: Vallecito | G116: 020400005 | H116: SILVERIO HERNANDEZ TINGLOS | I116: FLORES DE ORIENTE TINGLAS | J116: 60 | K116: 32 | M116: 0 | N116: 0 | P116: 0 | Q116: 0 | S116: 0 | T116: 0 | V116: 0 | W116: 0 | Y116: 60 | Z116: 32 | AA116: 92
A117: 02 | B117: Colón | C117: 04 | D117: Limon | E117: 02 | F117: Francia | G117: 020400008 | H117: JOSE CECILIO DEL VALLE | I117: FRANCIA | J117: 25 | K117: 21 | M117: 0 | N117: 0 | P117: 0 | Q117: 0 | S117: 0 | T117: 0 | V117: 0 | W117: 0 | Y117: 25 | Z117: 21 | AA117: 46
A118: 02 | B118: Colón | C118: 04 | D118: Limon | E118: 01 | F118: Limón | G118: 020400015 | H118: ABEL GONZALES CABALLERO | I118: BARRIO LUCINDA | J118: 0 | K118: 0 | M118: 132 | N118: 119 | P118: 36 | Q118: 36 | S118: 0 | T118: 0 | V118: 0 | W118: 0 | Y118: 168 | Z118: 155 | AA118: 323
A119: 02 | B119: Colón | C119: 04 | D119: Limon | E119: 03 | F119: Vallecito | G119: 020400060 | H119: SILVERIO HERNANDEZ TINGLAS | I119: ALDEA FLORES DE ORIENTE | J119: 0 | K119: 0 | M119: 31 | N119: 4 | P119: 0 | Q119: 0 | S119: 0 | T119: 0 | V119: 0 | W119: 0 | Y119: 31 | Z119: 4 | AA119: 35
A120: 02 | B120: Colón | C120: 05 | D120: Saba | E120: 02 | F120: Barranco Chele | G120: 020500008 | H120: ROGELIO PINEDA NUÑEZ | I120: BARRANCO CHELE | J120: 48 | K120: 26 | M120: 0 | N120: 0 | P120: 0 | Q120: 0 | S120: 0 | T120: 0 | V120: 0 | W120: 0 | Y120: 48 | Z120: 26 | AA120: 74
A121: 02 | B121: Colón | C121: 05 | D121: Saba | E121: 01 | F121: Sabá | G121: 020500036 | H121: NAPOLION ARIAS CRISTALES | I121: LUCIA | J121: 41 | K121: 37 | M121: 0 | N121: 0 | P121: 0 | Q121: 0 | S121: 0 | T121: 0 | V121: 0 | W121: 0 | Y121: 41 | Z121: 37 | AA121: 78
A122: 02 | B122: Colón | C122: 05 | D122: Saba | E122: 07 | F122: Ceibita | G122: 020500037 | H122: PERLA DEL AGUAN | I122: CEIBITA | J122: 13 | K122: 18 | M122: 0 | N122: 0 | P122: 0 | Q122: 0 | S122: 0 | T122: 0 | V122: 0 | W122: 0 | Y122: 13 | Z122: 18 | AA122: 31
A123: 02 | B123: Colón | C123: 05 | D123: Saba | E123: 11 | F123: Elíxir | G123: 020500045 | H123: RAUL MEDRANO GUTIERREZ | I123: ELIXIR | J123: 0 | K123: 0 | M123: 193 | N123: 192 | P123: 0 | Q123: 0 | S123: 0 | T123: 0 | V123: 0 | W123: 0 | Y123: 193 | Z123: 192 | AA123: 385
A124: 02 | B124: Colón | C124: 05 | D124: Saba | E124: 09 | F124: El Achiote | G124: 020500048 | H124: JOSE TRINIDAD CABAÑAS | I124: ACHIOTE, BARRIO EL CENTRO | J124: 65 | K124: 53 | M124: 0 | N124: 0 | P124: 0 | Q124: 0 | S124: 0 | T124: 0 | V124: 0 | W124: 0 | Y124: 65 | Z124: 53 | AA124: 118
A125: 02 | B125: Colón | C125: 05 | D125: Saba | E125: 01 | F125: Sabá | G125: 020500050 | H125: 4 DE SEPTIEMBRE | I125: BELLA VISTA | J125: 0 | K125: 0 | M125: 857 | N125: 707 | P125: 206 | Q125: 122 | S125: 0 | T125: 0 | V125: 0 | W125: 0 | Y125: 1,063 | Z125: 829 | AA125: 1,892
A126: 02 | B126: Colón | C126: 06 | D126: Santa fe | E126: 01 | F126: Santa Fe | G126: 020600011 | H126: JUAN JOSE | I126: SARARIA, SANTA FE | J126: 0 | K126: 0 | M126: 87 | N126: 90 | P126: 0 | Q126: 0 | S126: 0 | T126: 0 | V126: 0 | W126: 0 | Y126: 87 | Z126: 90 | AA126: 177
A127: 02 | B127: Colón | C127: 06 | D127: Santa fe | E127: 03 | F127: Plan Grande | G127: 020600012 | H127: ATENEA | I127: QUINITO, SANTA FE | J127: 22 | K127: 32 | M127: 0 | N127: 0 | P127: 0 | Q127: 0 | S127: 0 | T127: 0 | V127: 0 | W127: 0 | Y127: 22 | Z127: 32 | AA127: 54
A128: 02 | B128: Colón | C128: 07 | D128: Santa Rosa de Aguan | E128: 01 | F128: Santa Rosa de Aguán | G128: 020700004 | H128: RAFAEL LEONARDO CALLEJAS ROMERO | I128: RAFAEL LEONARDO CALLEJAS ROMERO | J128: 0 | K128: 0 | M128: 105 | N128: 74 | P128: 0 | Q128: 0 | S128: 0 | T128: 0 | V128: 0 | W128: 0 | Y128: 105 | Z128: 74 | AA128: 179
A129: 02 | B129: Colón | C129: 07 | D129: Santa Rosa de Aguan | E129: 01 | F129: Santa Rosa de Aguán | G129: 020700005 | H129: LA AURORA | I129: DOS BOCAS | J129: 37 | K129: 48 | M129: 0 | N129: 0 | P129: 0 | Q129: 0 | S129: 0 | T129: 0 | V129: 0 | W129: 0 | Y129: 37 | Z129: 48 | AA129: 85
A130: 02 | B130: Colón | C130: 08 | D130: Sonaguera | E130: 31 | F130: Los Planes | G130: 020800006 | H130: ALVARO CONTRERAS | I130: LOS PLANES | J130: 70 | K130: 64 | M130: 0 | N130: 0 | P130: 0 | Q130: 0 | S130: 0 | T130: 0 | V130: 0 | W130: 0 | Y130: 70 | Z130: 64 | AA130: 134
A131: 02 | B131: Colón | C131: 08 | D131: Sonaguera | E131: 20 | F131: Juan Lázaro Abajo o San Jose d | G131: 020800010 | H131: JOSE CECILIO DEL VALLE | I131: EL SASTRE | J131: 55 | K131: 44 | M131: 0 | N131: 0 | P131: 0 | Q131: 0 | S131: 0 | T131: 0 | V131: 0 | W131: 0 | Y131: 55 | Z131: 44 | AA131: 99
A132: 02 | B132: Colón | C132: 08 | D132: Sonaguera | E132: 22 | F132: La Curva de Isletas | G132: 020800012 | H132: PEDRO NUFIO | I132: LA CURVA DE ISLETA | J132: 32 | K132: 23 | M132: 0 | N132: 0 | P132: 0 | Q132: 0 | S132: 0 | T132: 0 | V132: 0 | W132: 0 | Y132: =J132+M132+P132+S132+V132 -> 32 | Z132: =K132+N132+Q132+T132+W132 -> 23 | AA132: =Y132+Z132 -> 55
A133: 02 | B133: Colón | C133: 08 | D133: Sonaguera | E133: 27 | F133: Lorelay | G133: 020800014 | H133: MIGUEL MORAZAN | I133: LORELAY | J133: 42 | K133: 40 | M133: 0 | N133: 0 | P133: 0 | Q133: 0 | S133: 0 | T133: 0 | V133: 0 | W133: 0 | Y133: 42 | Z133: 40 | AA133: 82
A134: 02 | B134: Colón | C134: 08 | D134: Sonaguera | E134: 36 | F134: Quebrada de Arena | G134: 020800015 | H134: OSCAR A FLORES | I134: QUEBRADA DE ARENA | J134: 41 | K134: 33 | M134: 0 | N134: 0 | P134: 0 | Q134: 0 | S134: 0 | T134: 0 | V134: 0 | W134: 0 | Y134: 41 | Z134: 33 | AA134: 74
A135: 02 | B135: Colón | C135: 08 | D135: Sonaguera | E135: 01 | F135: Sonaguera | G135: 020800028 | H135: LUIS LANDA | I135: EL OLVIDO, COL. MORAZAN | J135: 67 | K135: 52 | M135: 0 | N135: 0 | P135: 0 | Q135: 0 | S135: 0 | T135: 0 | V135: 0 | W135: 0 | Y135: 67 | Z135: 52 | AA135: 119
A136: 02 | B136: Colón | C136: 08 | D136: Sonaguera | E136: 39 | F136: Sabana de Utila | G136: 020800033 | H136: JOAQUIN REYES TEJEDA | I136: SABANA DE UTILA | J136: 46 | K136: 19 | M136: 0 | N136: 0 | P136: 0 | Q136: 0 | S136: 0 | T136: 0 | V136: 0 | W136: 0 | Y136: 46 | Z136: 19 | AA136: 65
A137: 02 | B137: Colón | C137: 08 | D137: Sonaguera | E137: 19 | F137: Isleta Central | G137: 020800061 | H137: FRAY BARTOLOME DE LAS CASA | I137: COL 9 DE AGOSTO | J137: 0 | K137: 0 | M137: 189 | N137: 165 | P137: 0 | Q137: 0 | S137: 0 | T137: 0 | V137: 0 | W137: 0 | Y137: 189 | Z137: 165 | AA137: 354
A138: 02 | B138: Colón | C138: 08 | D138: Sonaguera | E138: 34 | F138: Parmas | G138: 020800062 | H138: CARLOS MARTINEZ DURON | I138: PARMA | J138: 0 | K138: 0 | M138: 183 | N138: 196 | P138: 0 | Q138: 0 | S138: 0 | T138: 0 | V138: 0 | W138: 0 | Y138: 183 | Z138: 196 | AA138: 379
A139: 02 | B139: Colón | C139: 08 | D139: Sonaguera | E139: 01 | F139: Sonaguera | G139: 020800063 | H139: 19 DE DICIEMBRE | I139: Bo. San Martin | J139: 0 | K139: 0 | M139: 840 | N139: 767 | P139: 153 | Q139: 64 | S139: 0 | T139: 0 | V139: 0 | W139: 0 | Y139: 993 | Z139: 831 | AA139: 1,824
A140: 02 | B140: Colón | C140: 08 | D140: Sonaguera | E140: 09 | F140: Churrusquera | G140: 020800073 | H140: NUEVO AMANECER | I140: LA HILARIA | J140: 56 | K140: 29 | M140: 0 | N140: 0 | P140: 0 | Q140: 0 | S140: 0 | T140: 0 | V140: 0 | W140: 0 | Y140: 56 | Z140: 29 | AA140: 85
A141: 02 | B141: Colón | C141: 08 | D141: Sonaguera | E141: 01 | F141: Sonaguera | G141: 020800106 | H141: SALOMON MARTINEZ DURON | I141: SONAGUERA, EL NUEVO SINAI | J141: 0 | K141: 0 | M141: 134 | N141: 109 | P141: 0 | Q141: 0 | S141: 0 | T141: 0 | V141: 0 | W141: 0 | Y141: 134 | Z141: 109 | AA141: 243
A142: 02 | B142: Colón | C142: 09 | D142: Tocoa | E142: 06 | F142: Tocoa | G142: 020900004 | H142: CENTRO AMERICA | I142: GUAPINOL | J142: 74 | K142: 64 | M142: 0 | N142: 0 | P142: 0 | Q142: 0 | S142: 0 | T142: 0 | V142: 0 | W142: 0 | Y142: 74 | Z142: 64 | AA142: 138
A143: 02 | B143: Colón | C143: 09 | D143: Tocoa | E143: 09 | F143: Tocoa | G143: 020900007 | H143: TESORO INFANTIL | I143: CEIBITA | J143: 79 | K143: 36 | M143: 0 | N143: 0 | P143: 0 | Q143: 0 | S143: 0 | T143: 0 | V143: 0 | W143: 0 | Y143: 79 | Z143: 36 | AA143: 115
A144: 02 | B144: Colón | C144: 09 | D144: Tocoa | E144: 01 | F144: Tocoa | G144: 020900008 | H144: PAULO FREIRE | I144: BARRIO MANGASECA | J144: 89 | K144: 72 | M144: 0 | N144: 0 | P144: 0 | Q144: 0 | S144: 0 | T144: 0 | V144: 0 | W144: 0 | Y144: 89 | Z144: 72 | AA144: 161
A145: 02 | B145: Colón | C145: 09 | D145: Tocoa | E145: 13 | F145: Prieta | G145: 020900011 | H145: RAMON MONTOYA | I145: PRIETA | J145: 46 | K145: 36 | M145: 0 | N145: 0 | P145: 0 | Q145: 0 | S145: 0 | T145: 0 | V145: 0 | W145: 0 | Y145: 46 | Z145: 36 | AA145: 82
A146: 02 | B146: Colón | C146: 09 | D146: Tocoa | E146: 17 | F146: Taujica | G146: 020900020 | H146: RAMON ROSA | I146: TAUJICA | J146: 99 | K146: 62 | M146: 0 | N146: 0 | P146: 0 | Q146: 0 | S146: 0 | T146: 0 | V146: 0 | W146: 0 | Y146: 99 | Z146: 62 | AA146: 161
A147: 02 | B147: Colón | C147: 09 | D147: Tocoa | E147: 01 | F147: Tocoa | G147: 020900021 | H147: JUANA DONATILA RUIZ | I147: COLONIA AURORA | J147: 42 | K147: 32 | M147: 0 | N147: 0 | P147: 0 | Q147: 0 | S147: 0 | T147: 0 | V147: 0 | W147: 0 | Y147: 42 | Z147: 32 | AA147: 74
A148: 02 | B148: Colón | C148: 09 | D148: Tocoa | E148: 11 | F148: Tocoa | G148: 020900023 | H148: HIBUERAS | I148: LAS MANGAS | J148: 9 | K148: 10 | M148: 0 | N148: 0 | P148: 0 | Q148: 0 | S148: 0 | T148: 0 | V148: 0 | W148: 0 | Y148: 9 | Z148: 10 | AA148: 19
A149: 02 | B149: Colón | C149: 09 | D149: Tocoa | E149: 17 | F149: Tocoa | G149: 020900026 | H149: 14 DE AGOSTO | I149: COL. SUYAPA | J149: 19 | K149: 24 | M149: 0 | N149: 0 | P149: 0 | Q149: 0 | S149: 0 | T149: 0 | V149: 0 | W149: 0 | Y149: 19 | Z149: 24 | AA149: 43
A150: 02 | B150: Colón | C150: 09 | D150: Tocoa | E150: 08 | F150: La Abisinia | G150: 020900034 | H150: ALFONZO BERGANZA DERAS | I150: LA ABICINIA | J150: 74 | K150: 45 | M150: 0 | N150: 0 | P150: 0 | Q150: 0 | S150: 0 | T150: 0 | V150: 0 | W150: 0 | Y150: 74 | Z150: 45 | AA150: 119
A151: 02 | B151: Colón | C151: 09 | D151: Tocoa | E151: 01 | F151: Tocoa | G151: 020900038 | H151: ROTARIO NO.1 | I151: COLONIA BUENA VISTA | J151: 54 | K151: 15 | M151: 0 | N151: 0 | P151: 0 | Q151: 0 | S151: 0 | T151: 0 | V151: 0 | W151: 0 | Y151: 54 | Z151: 15 | AA151: 69
A152: 02 | B152: Colón | C152: 09 | D152: Tocoa | E152: 01 | F152: Tocoa | G152: 020900073 | H152: TECNICO FROYLAN TURCIOS | I152: BARRIO LA CEIBA | J152: 0 | K152: 0 | M152: 632 | N152: 957 | P152: 150 | Q152: 57 | S152: 0 | T152: 0 | V152: 0 | W152: 0 | Y152: 782 | Z152: 1,014 | AA152: 1,796
A153: 02 | B153: Colón | C153: 09 | D153: Tocoa | E153: 16 | F153: Salamá | G153: 020900074 | H153: JOSE CECILIO DEL VALLE | I153: SALAMA,BO. EL TAMARINDO | J153: 0 | K153: 0 | M153: 113 | N153: 86 | P153: 0 | Q153: 0 | S153: 0 | T153: 0 | V153: 0 | W153: 0 | Y153: 113 | Z153: 86 | AA153: 199
A154: 02 | B154: Colón | C154: 09 | D154: Tocoa | E154: 18 | F154: Zamora | G154: 020900075 | H154: BAJO AGUAN | I154: ZAMORA | J154: 0 | K154: 0 | M154: 264 | N154: 181 | P154: 0 | Q154: 0 | S154: 0 | T154: 0 | V154: 0 | W154: 0 | Y154: 264 | Z154: 181 | AA154: 445
A155: 02 | B155: Colón | C155: 09 | D155: Tocoa | E155: 01 | F155: Tocoa | G155: 020900076 | H155: RAMON ROSA | I155: Bo. Abajo y Bo. La Ceiba | J155: 0 | K155: 0 | M155: 2,141 | N155: 1,251 | P155: 0 | Q155: 0 | S155: 0 | T155: 0 | V155: 0 | W155: 0 | Y155: 2,141 | Z155: 1,251 | AA155: 3,392
A156: 02 | B156: Colón | C156: 09 | D156: Tocoa | E156: 15 | F156: Quebrada de Arena | G156: 020900107 | H156: FAUSTO CASTILLO SUAZO | I156: QUEBRADA DE ARENA | J156: 0 | K156: 0 | M156: 192 | N156: 176 | P156: 0 | Q156: 0 | S156: 0 | T156: 0 | V156: 0 | W156: 0 | Y156: 192 | Z156: 176 | AA156: 368
A157: 02 | B157: Colón | C157: 09 | D157: Tocoa | E157: 02 | F157: Tocoa | G157: 020900126 | H157: JOSE TRINIDAD CABAÑAS | I157: SECTOR SANPEDRO, ADELANTE DE TAPIQUIL | J157: 43 | K157: 24 | M157: 0 | N157: 0 | P157: 0 | Q157: 0 | S157: 0 | T157: 0 | V157: 0 | W157: 0 | Y157: 43 | Z157: 24 | AA157: 67
A158: 02 | B158: Colón | C158: 09 | D158: Tocoa | E158: 18 | F158: Zamora | G158: 020900140 | H158: SAT POLIVALENTE BAJO AGUAN | I158: ZAMORA | J158: 0 | K158: 0 | M158: 39 | N158: 24 | P158: 0 | Q158: 0 | S158: 272 | T158: 266 | V158: 0 | W158: 0 | Y158: 311 | Z158: 290 | AA158: 601
A159: 02 | B159: Colón | C159: 10 | D159: Bonito Oriental | E159: 02 | F159: Corocito | G159: 021000003 | H159: JESUS AGUILAR PAZ | I159: COROCITO | J159: 88 | K159: 72 | M159: 0 | N159: 0 | P159: 0 | Q159: 0 | S159: 0 | T159: 0 | V159: 0 | W159: 0 | Y159: 88 | Z159: 72 | AA159: 160
A160: 02 | B160: Colón | C160: 10 | D160: Bonito Oriental | E160: 04 | F160: El Antigual | G160: 021000008 | H160: EUGENIO MATUTE CANIZALES | I160: EL ANTIGUAL | J160: 29 | K160: 24 | M160: 0 | N160: 0 | P160: 0 | Q160: 0 | S160: 0 | T160: 0 | V160: 0 | W160: 0 | Y160: 29 | Z160: 24 | AA160: 53
A161: 02 | B161: Colón | C161: 10 | D161: Bonito Oriental | E161: 03 | F161: El Achiote | G161: 021000010 | H161: AMANECER CAMPESINO | I161: EL ACHIOTE | J161: 35 | K161: 13 | M161: 0 | N161: 0 | P161: 0 | Q161: 0 | S161: 0 | T161: 0 | V161: 0 | W161: 0 | Y161: 35 | Z161: 13 | AA161: 48
A162: 02 | B162: Colón | C162: 10 | D162: Bonito Oriental | E162: 06 | F162: La Esperanza | G162: 021000013 | H162: MARCO TULIO CASTILLO SANTOS | I162: El Tanque | J162: 0 | K162: 0 | M162: 147 | N162: 124 | P162: 0 | Q162: 0 | S162: 0 | T162: 0 | V162: 0 | W162: 0 | Y162: 147 | Z162: 124 | AA162: 271
A163: 02 | B163: Colón | C163: 10 | D163: Bonito Oriental | E163: 09 | F163: San José del Cinco | G163: 021000016 | H163: RUBEN ANTUNEZ C. | I163: LAS PALMAS,KILOMETRO CINCO | J163: 74 | K163: 64 | M163: 0 | N163: 0 | P163: 0 | Q163: 0 | S163: 0 | T163: 0 | V163: 0 | W163: 0 | Y163: 74 | Z163: 64 | AA163: 138
A164: 02 | B164: Colón | C164: 10 | D164: Bonito Oriental | E164: 01 | F164: Trujillo | G164: 021000023 | H164: ALEXIS ORDOÑEZ PADILLA | I164: EL CARBONAL | J164: 64 | K164: 37 | M164: 0 | N164: 0 | P164: 0 | Q164: 0 | S164: 0 | T164: 0 | V164: 0 | W164: 0 | Y164: 64 | Z164: 37 | AA164: 101
A165: 02 | B165: Colón | C165: 10 | D165: Bonito Oriental | E165: 01 | F165: Trujillo | G165: 021000046 | H165: MANUEL DE JESUS SUBIRANA | I165: BARRIO SUBIRANA | J165: 0 | K165: 0 | M165: 391 | N165: 222 | P165: 0 | Q165: 0 | S165: 0 | T165: 0 | V165: 0 | W165: 0 | Y165: 391 | Z165: 222 | AA165: 613
A166: 03 | B166: Comayagua | C166: 01 | D166: Comayagua | E166: 05 | F166: El Ciruelo | G166: 030100004 | H166: GUADALUPE ULLOA | I166: EL CIRUELO | J166: 20 | K166: 24 | M166: 0 | N166: 0 | P166: 0 | Q166: 0 | S166: 0 | T166: 0 | V166: 0 | W166: 0 | Y166: 20 | Z166: 24 | AA166: 44
A167: 03 | B167: Comayagua | C167: 01 | D167: Comayagua | E167: 01 | F167: Comayagua | G167: 030100016 | H167: CENTRO DE EDUCACION BASICA PABLO PORTILLO FIGUEROA | I167: COL. PRIMERO DE MAYO | J167: 115 | K167: 60 | M167: 0 | N167: 0 | P167: 0 | Q167: 0 | S167: 0 | T167: 0 | V167: 0 | W167: 0 | Y167: 115 | Z167: 60 | AA167: 175
A168: 03 | B168: Comayagua | C168: 01 | D168: Comayagua | E168: 02 | F168: Agua Salada | G168: 030100025 | H168: FRANCISCO MORAZAN | I168: AGUA SALADA | J168: 16 | K168: 15 | M168: 0 | N168: 0 | P168: 0 | Q168: 0 | S168: 0 | T168: 0 | V168: 0 | W168: 0 | Y168: 16 | Z168: 15 | AA168: 31
A169: 03 | B169: Comayagua | C169: 01 | D169: Comayagua | E169: 37 | F169: San José de Pane | G169: 030100026 | H169: LEONCIO VALLE | I169: ALDEA DE SAN JOSE DE PANE | J169: 35 | K169: 26 | M169: 0 | N169: 0 | P169: 0 | Q169: 0 | S169: 0 | T169: 0 | V169: 0 | W169: 0 | Y169: 35 | Z169: 26 | AA169: 61
A170: 03 | B170: Comayagua | C170: 01 | D170: Comayagua | E170: 12 | F170: El Sauce | G170: 030100030 | H170: ESCUELA FRANCISCO MORAZAN | I170: EL SAUCE | J170: 47 | K170: 34 | M170: 0 | N170: 0 | P170: 0 | Q170: 0 | S170: 0 | T170: 0 | V170: 0 | W170: 0 | Y170: 47 | Z170: 34 | AA170: 81
A171: 03 | B171: Comayagua | C171: 01 | D171: Comayagua | E171: 39 | F171: Valle de Angeles | G171: 030100034 | H171: CENTRO DE EDUCACION BASICA COMALHUACAN | I171: VALLE DE ANGELES COMAYAGUA | J171: 28 | K171: 38 | M171: 0 | N171: 0 | P171: 0 | Q171: 0 | S171: 0 | T171: 0 | V171: 0 | W171: 0 | Y171: 28 | Z171: 38 | AA171: 66
A172: 03 | B172: Comayagua | C172: 01 | D172: Comayagua | E172: 01 | F172: Comayagua | G172: 030100047 | H172: RAMON ORTEGA | I172: BARRIO SANTA LUCIA | J172: 39 | K172: 18 | M172: 0 | N172: 0 | P172: 0 | Q172: 0 | S172: 0 | T172: 0 | V172: 0 | W172: 0 | Y172: 39 | Z172: 18 | AA172: 57
A173: 03 | B173: Comayagua | C173: 01 | D173: Comayagua | E173: 01 | F173: Comayagua | G173: 030100052 | H173: RAMIRO HUMBERTO MORENO | I173: BARRIO BELLA VISTA LA ZAREITA | J173: 80 | K173: 51 | M173: 0 | N173: 0 | P173: 0 | Q173: 0 | S173: 0 | T173: 0 | V173: 0 | W173: 0 | Y173: 80 | Z173: 51 | AA173: 131
A174: 03 | B174: Comayagua | C174: 01 | D174: Comayagua | E174: 10 | F174: El Portillo de La Mora | G174: 030100066 | H174: NICOLAS MONTES | I174: PORTILLO DE LA MORA | J174: 74 | K174: 47 | M174: 0 | N174: 0 | P174: 0 | Q174: 0 | S174: 0 | T174: 0 | V174: 0 | W174: 0 | Y174: 74 | Z174: 47 | AA174: 121
A175: 03 | B175: Comayagua | C175: 01 | D175: Comayagua | E175: 01 | F175: Comayagua | G175: 030100130 | H175: DEPTAL. LEON ALVARADO | I175: BO. TORONDON | J175: 0 | K175: 0 | M175: 1,815 | N175: 1,473 | P175: 0 | Q175: 0 | S175: 0 | T175: 0 | V175: 0 | W175: 0 | Y175: 1,815 | Z175: 1,473 | AA175: 3,288
A176: 03 | B176: Comayagua | C176: 01 | D176: Comayagua | E176: 31 | F176: Palo Pintado | G176: 030100132 | H176: 18 DE JUNIO | I176: PALO PINTADO | J176: 0 | K176: 0 | M176: 69 | N176: 52 | P176: 0 | Q176: 0 | S176: 12 | T176: 7 | V176: 0 | W176: 0 | Y176: 81 | Z176: 59 | AA176: 140
A177: 03 | B177: Comayagua | C177: 01 | D177: Comayagua | E177: 01 | F177: Comayagua | G177: 030100176 | H177: ESCUELA NORMAL CENTRO AMERICA | I177: EL EDEN, COMAYAGUA | J177: 0 | K177: 0 | M177: 997 | N177: 425 | P177: 0 | Q177: 0 | S177: 0 | T177: 0 | V177: 0 | W177: 0 | Y177: 997 | Z177: 425 | AA177: 1,422
A178: 03 | B178: Comayagua | C178: 01 | D178: Comayagua | E178: 01 | F178: Comayagua | G178: 030100201 | H178: TECNICO COMALHUACAN | I178: INDEPENDENCIA | J178: 0 | K178: 0 | M178: 166 | N178: 523 | P178: 0 | Q178: 0 | S178: 0 | T178: 0 | V178: 0 | W178: 0 | Y178: 166 | Z178: 523 | AA178: 689
A179: 03 | B179: Comayagua | C179: 01 | D179: Comayagua | E179: 01 | F179: Comayagua | G179: 030100244 | H179: ACADEMIA MILITAR DE AVIACION "CAPITAN ROBERTO RAUL BARAHONA LAGOS" | I179: COMAYAGUA,PALMEROLA | J179: 0 | K179: 0 | M179: 3 | N179: 49 | P179: 0 | Q179: 0 | S179: 0 | T179: 0 | V179: 0 | W179: 0 | Y179: 3 | Z179: 49 | AA179: 52
A180: 03 | B180: Comayagua | C180: 01 | D180: Comayagua | E180: 01 | F180: Comayagua | G180: 030100250 | H180: CENTRO EDUCATIVO SHADDAY | I180: BARRIO SAN BLAS | J180: 0 | K180: 0 | M180: 0 | N180: 0 | P180: 0 | Q180: 0 | S180: 0 | T180: 0 | V180: 176 | W180: 75 | Y180: 176 | Z180: 75 | AA180: 251
A181: 03 | B181: Comayagua | C181: 01 | D181: Comayagua | E181: 14 | F181: El Taladro | G181: 030100264 | H181: NUEVO AMANECER | I181: ASENTAMIENTO ISLA DEL TRIUNFO | J181: 8 | K181: 4 | M181: 0 | N181: 0 | P181: 0 | Q181: 0 | S181: 0 | T181: 0 | V181: 0 | W181: 0 | Y181: 8 | Z181: 4 | AA181: 12
A182: 03 | B182: Comayagua | C182: 01 | D182: Comayagua | G182: 030100289 | H182: INSTITUTO OFICIAL EBEN EZER | I182: COLONIA LOS JASMINEZ | J182: 0 | K182: 0 | M182: 418 | N182: 311 | P182: 430 | Q182: 215 | S182: 0 | T182: 0 | V182: 0 | W182: 0 | Y182: 848 | Z182: 526 | AA182: 1,374
A183: 03 | B183: Comayagua | C183: 01 | D183: Comayagua | E183: 32 | F183: Piedras Azules | G183: 030100299 | H183: JOSE MANUEL ZELAYA ROSALES | I183: COMAYAGUA | J183: 25 | K183: 25 | M183: 0 | N183: 0 | P183: 0 | Q183: 0 | S183: 0 | T183: 0 | V183: 0 | W183: 0 | Y183: 25 | Z183: 25 | AA183: 50
A184: 03 | B184: Comayagua | C184: 02 | D184: Ajuterique | E184: 01 | F184: Ajuterique | G184: 030200018 | H184: GREGORIO CONSUEGRA | I184: AJUTERIQUE | J184: 0 | K184: 0 | M184: 343 | N184: 289 | P184: 0 | Q184: 0 | S184: 28 | T184: 19 | V184: 0 | W184: 0 | Y184: 371 | Z184: 308 | AA184: 679
A185: 03 | B185: Comayagua | C185: 03 | D185: El Rosario | E185: 03 | F185: Cerro Blanco | G185: 030300005 | H185: JOSE RAMON VILLEDA MORALES | I185: ALDEA CERRO BLANCO | J185: 76 | K185: 43 | M185: 0 | N185: 0 | P185: 0 | Q185: 0 | S185: 0 | T185: 0 | V185: 0 | W185: 0 | Y185: 76 | Z185: 43 | AA185: 119
A186: 03 | B186: Comayagua | C186: 03 | D186: El Rosario | E186: 11 | F186: San Francisco de Loma Larga | G186: 030300008 | H186: DEMETRIO MARTINEZ | I186: LOMA LARGA | J186: 47 | K186: 41 | M186: 0 | N186: 0 | P186: 0 | Q186: 0 | S186: 0 | T186: 0 | V186: 0 | W186: 0 | Y186: 47 | Z186: 41 | AA186: 88
A187: 03 | B187: Comayagua | C187: 03 | D187: El Rosario | E187: 12 | F187: San Isidro | G187: 030300009 | H187: MIGUEL PAZ BARAHONA | I187: SAN ISIDRO | J187: 76 | K187: 50 | M187: 0 | N187: 0 | P187: 0 | Q187: 0 | S187: 0 | T187: 0 | V187: 0 | W187: 0 | Y187: 76 | Z187: 50 | AA187: 126
A188: 03 | B188: Comayagua | C188: 03 | D188: El Rosario | E188: 06 | F188: La Laguna | G188: 030300027 | H188: MANUEL BONILLA | I188: LAS LAGUNAS | J188: 41 | K188: 33 | M188: 0 | N188: 0 | P188: 0 | Q188: 0 | S188: 0 | T188: 0 | V188: 0 | W188: 0 | Y188: 41 | Z188: 33 | AA188: 74
A189: 03 | B189: Comayagua | C189: 03 | D189: El Rosario | E189: 04 | F189: Concepción de Guasistagua | G189: 030300039 | H189: REPUBLICA DE HONDURAS | I189: LA CONCEPCION | J189: 49 | K189: 34 | M189: 0 | N189: 0 | P189: 0 | Q189: 0 | S189: 0 | T189: 0 | V189: 0 | W189: 0 | Y189: 49 | Z189: 34 | AA189: 83
A190: 03 | B190: Comayagua | C190: 03 | D190: El Rosario | E190: 01 | F190: El Rosario | G190: 030300040 | H190: OPOTECA | I190: SAN ANTONIO DE LA SABANETA | J190: 0 | K190: 0 | M190: 162 | N190: 126 | P190: 0 | Q190: 0 | S190: 0 | T190: 0 | V190: 0 | W190: 0 | Y190: 162 | Z190: 126 | AA190: 288
A191: 03 | B191: Comayagua | C191: 04 | D191: Esquias | E191: 06 | F191: Rancho Grande | G191: 030400003 | H191: GREGORIO DONAIRE | I191: BARRIO ARRIBA | J191: 88 | K191: 58 | M191: 0 | N191: 0 | P191: 0 | Q191: 0 | S191: 0 | T191: 0 | V191: 0 | W191: 0 | Y191: 88 | Z191: 58 | AA191: 146
A192: 03 | B192: Comayagua | C192: 04 | D192: Esquias | E192: 06 | F192: Rancho Grande | G192: 030400003 | H192: GREGORIO DONAIRE | I192: BARRIO ARRIBA | J192: 0 | K192: 0 | M192: 36 | N192: 13 | P192: 0 | Q192: 0 | S192: 0 | T192: 0 | V192: 0 | W192: 0 | Y192: 36 | Z192: 13 | AA192: 49
A193: 03 | B193: Comayagua | C193: 04 | D193: Esquias | E193: 07 | F193: Río Chiquito | G193: 030400005 | H193: FRANCISCO MORAZAN | I193: LA MASICA | J193: 60 | K193: 38 | M193: 0 | N193: 0 | P193: 0 | Q193: 0 | S193: 0 | T193: 0 | V193: 0 | W193: 0 | Y193: 60 | Z193: 38 | AA193: 98
A194: 03 | B194: Comayagua | C194: 04 | D194: Esquias | E194: 02 | F194: El Oro Abajo | G194: 030400017 | H194: FRANCISCO MORAZAN | I194: CALPULES | J194: 35 | K194: 21 | M194: 0 | N194: 0 | P194: 0 | Q194: 0 | S194: 0 | T194: 0 | V194: 0 | W194: 0 | Y194: 35 | Z194: 21 | AA194: 56
A195: 03 | B195: Comayagua | C195: 04 | D195: Esquias | E195: 01 | F195: Esquías | G195: 030400040 | H195: ALEJANDRO ALFARO ARRIAGA | I195: Bo. LA ESPERANZA | J195: 0 | K195: 0 | M195: 134 | N195: 93 | P195: 0 | Q195: 0 | S195: 0 | T195: 0 | V195: 0 | W195: 0 | Y195: 134 | Z195: 93 | AA195: 227
A196: 03 | B196: Comayagua | C196: 05 | D196: Humuya | E196: 01 | F196: Humuya | G196: 030500002 | H196: JOSE CECILIO DEL VALLE | I196: FRENTE AL SALON COMUNAL HUMUYA | J196: 32 | K196: 34 | M196: 0 | N196: 0 | P196: 0 | Q196: 0 | S196: 0 | T196: 0 | V196: 0 | W196: 0 | Y196: =J196+M196+P196+S196+V196 -> 32 | Z196: =K196+N196+Q196+T196+W196 -> 34 | AA196: =Y196+Z196 -> 66
A197: 03 | B197: Comayagua | C197: 06 | D197: La Libertad | E197: 19 | F197: Valle Bonito | G197: 030600003 | H197: LA DEMOCRACIA | I197: VALLE BONITO | J197: 39 | K197: 39 | M197: 0 | N197: 0 | P197: 0 | Q197: 0 | S197: 0 | T197: 0 | V197: 0 | W197: 0 | Y197: 39 | Z197: 39 | AA197: 78
A198: 03 | B198: Comayagua | C198: 06 | D198: La Libertad | E198: 14 | F198: San Andrés | G198: 030600009 | H198: JUAN FRANCISCO ROMERO | I198: EL TRANSITO | J198: 62 | K198: 59 | M198: 0 | N198: 0 | P198: 0 | Q198: 0 | S198: 0 | T198: 0 | V198: 0 | W198: 0 | Y198: 62 | Z198: 59 | AA198: 121
A199: 03 | B199: Comayagua | C199: 06 | D199: La Libertad | E199: 01 | F199: La Libertad | G199: 030600013 | H199: POMPILIO ORTEGA | I199: BARRIO BELLA VISTA | J199: 0 | K199: 0 | M199: 363 | N199: 363 | P199: 0 | Q199: 0 | S199: 0 | T199: 0 | V199: 0 | W199: 0 | Y199: 363 | Z199: 363 | AA199: 726
A200: 03 | B200: Comayagua | C200: 06 | D200: La Libertad | E200: 12 | F200: Montañuelas | G200: 030600019 | H200: PEDRO A MEDAL | I200: MONTAÑUELAS | J200: 27 | K200: 28 | M200: 0 | N200: 0 | P200: 0 | Q200: 0 | S200: 0 | T200: 0 | V200: 0 | W200: 0 | Y200: 27 | Z200: 28 | AA200: 55
... 1390 more rows

Sheet Hoja1
A1: 01 | B1: Atlántida | C1: 01 | D1: LA CEIBA | E1: 01 | F1: La Ceiba | G1: 010100007 | H1: CRISTOBAL COLON | I1: COL. YESSENIA CASTILLO | K1: 70 | L1: 54 | M1: 0 | N1: 0 | O1: 0 | P1: 0 | Q1: 0 | R1: 0 | S1: 0 | T1: 0
A2: 01 | B2: Atlántida | C2: 01 | D2: LA CEIBA | E2: 01 | F2: La Ceiba | G2: 010100016 | H2: JUAN PINEDA CARIAS | I2: COLONIA PIZZATY | K2: 163 | L2: 135 | M2: 0 | N2: 0 | O2: 0 | P2: 0 | Q2: 0 | R2: 0 | S2: 0 | T2: 0
A3: 01 | B3: Atlántida | C3: 01 | D3: LA CEIBA | E3: 01 | F3: La Ceiba | G3: 010100028 | H3: JUSTO RUFINO SPILBURY | I3: EL BUFALO | K3: 35 | L3: 41 | M3: 0 | N3: 0 | O3: 0 | P3: 0 | Q3: 0 | R3: 0 | S3: 0 | T3: 0
A4: 01 | B4: Atlántida | C4: 01 | D4: LA CEIBA | E4: 01 | F4: La Ceiba | G4: 010100031 | H4: RAFAELA HUETE DE RODRIGUEZ | I4: MIRAMAR | K4: 66 | L4: 84 | M4: 0 | N4: 0 | O4: 0 | P4: 0 | Q4: 0 | R4: 0 | S4: 0 | T4: 0
A5: 01 | B5: Atlántida | C5: 01 | D5: LA CEIBA | E5: 01 | F5: La Ceiba | G5: 010100032 | H5: RAFAEL PINEDA PONCE | I5: COL SUYAPA | K5: 87 | L5: 75 | M5: 0 | N5: 0 | O5: 0 | P5: 0 | Q5: 0 | R5: 0 | S5: 0 | T5: 0
A6: 01 | B6: Atlántida | C6: 01 | D6: LA CEIBA | E6: 01 | F6: La Ceiba | G6: 010100033 | H6: JOSE V VASQUES | I6: GOLOZON | K6: 116 | L6: 79 | M6: 0 | N6: 0 | O6: 0 | P6: 0 | Q6: 0 | R6: 0 | S6: 0 | T6: 0
A7: 01 | B7: Atlántida | C7: 01 | D7: LA CEIBA | E7: 01 | F7: La Ceiba | G7: 010100042 | H7: JUANA REYES DE MARESMA | I7: PALMIRA | K7: 104 | L7: 75 | M7: 0 | N7: 0 | O7: 0 | P7: 0 | Q7: 0 | R7: 0 | S7: 0 | T7: 0
A8: 01 | B8: Atlántida | C8: 01 | D8: LA CEIBA | E8: 01 | F8: La Ceiba | G8: 010100045 | H8: JOSE TRINIDAD REYES | I8: BARRIO DANTO | K8: 128 | L8: 91 | M8: 0 | N8: 0 | O8: 0 | P8: 0 | Q8: 0 | R8: 0 | S8: 0 | T8: 0
A9: 01 | B9: Atlántida | C9: 01 | D9: LA CEIBA | E9: 21 | F9: Yaruca | G9: 010100047 | H9: MINERVA | I9: CUENCA DEL RIO CANGREJAL 22 KM DE CEIBA | K9: 30 | L9: 33 | M9: 0 | N9: 0 | O9: 0 | P9: 0 | Q9: 0 | R9: 0 | S9: 0 | T9: 0
A10: 01 | B10: Atlántida | C10: 01 | D10: LA CEIBA | E10: 16 | F10: Río Viejo | G10: 010100050 | H10: JUAN LINDO | I10: EL PERU | K10: 76 | L10: 64 | M10: 0 | N10: 0 | O10: 0 | P10: 0 | Q10: 0 | R10: 0 | S10: 0 | T10: 0
A11: 01 | B11: Atlántida | C11: 01 | D11: LA CEIBA | E11: 01 | F11: La Ceiba | G11: 010100053 | H11: CLAUDIO BARRERRA | I11: SAN JUDAS TADEO | K11: 229 | L11: 154 | M11: 0 | N11: 0 | O11: 0 | P11: 0 | Q11: 0 | R11: 0 | S11: 0 | T11: 0
A12: 01 | B12: Atlántida | C12: 01 | D12: LA CEIBA | E12: 01 | F12: La Ceiba | G12: 010100053 | H12: CLAUDIO BARRERRA | I12: SAN JUDAS TADEO | K12: 0 | L12: 0 | M12: 57 | N12: 43 | O12: 0 | P12: 0 | Q12: 0 | R12: 0 | S12: 0 | T12: 0
A13: 01 | B13: Atlántida | C13: 01 | D13: LA CEIBA | E13: 01 | F13: La Ceiba | G13: 010100071 | H13: MARCIO RENE ESPINAL CARDONA | I13: COL. RODOLFO IRIAS NAVAS | K13: 233 | L13: 165 | M13: 0 | N13: 0 | O13: 0 | P13: 0 | Q13: 0 | R13: 0 | S13: 0 | T13: 0
A14: 01 | B14: Atlántida | C14: 01 | D14: LA CEIBA | E14: 01 | F14: La Ceiba | G14: 010100131 | H14: MANUEL BONILLA | I14: CARMEN ELENA, PROLONGACION AVE SAN ISIDRO | K14: 0 | L14: 0 | M14: 2388 | N14: 1666 | O14: 559 | P14: 240 | Q14: 0 | R14: 0 | S14: 0 | T14: 0
A15: 01 | B15: Atlántida | C15: 01 | D15: LA CEIBA | E15: 01 | F15: La Ceiba | G15: 010100132 | H15: MARCO H FAJARDO, TECNICO | I15: COLONIA PALMIRA, DESVIO AL CURLA | K15: 0 | L15: 0 | M15: 412 | N15: 1576 | O15: 0 | P15: 0 | Q15: 0 | R15: 0 | S15: 0 | T15: 0
A16: 01 | B16: Atlántida | C16: 01 | D16: LA CEIBA | E16: 04 | F16: Corozal | G16: 010100145 | H16: MARIANO GARCIA ARZU | I16: COROZAL | K16: 0 | L16: 0 | M16: 216 | N16: 162 | O16: 0 | P16: 0 | Q16: 0 | R16: 0 | S16: 0 | T16: 0
A17: 01 | B17: Atlántida | C17: 01 | D17: LA CEIBA | E17: 01 | F17: La Ceiba | G17: 010100148 | H17: INSTITUTO OFICIAL NOCTURNO VICTORIA CONTRERAS | I17: BARRIO SIERRA PINA | K17: 0 | L17: 0 | M17: 283 | N17: 226 | O17: 0 | P17: 0 | Q17: 0 | R17: 0 | S17: 0 | T17: 0
A18: 01 | B18: Atlántida | C18: 01 | D18: LA CEIBA | E18: 17 | F18: Sambo Creek | G18: 010100208 | H18: INSTITUTO OFICIAL SATUYE | I18: SAMBO CREEK | K18: 0 | L18: 0 | M18: 149 | N18: 96 | O18: 0 | P18: 0 | Q18: 26 | R18: 24 | S18: 0 | T18: 0
A19: 01 | B19: Atlántida | C19: 01 | D19: LA CEIBA | E19: 09 | F19: El Pital | G19: 010100209 | H19: ELVIRA PINEDA MADRID | I19: CUENCA DEL CANGREJAL, EL PITAL | K19: 0 | L19: 0 | M19: 88 | N19: 97 | O19: 0 | P19: 0 | Q19: 0 | R19: 0 | S19: 0 | T19: 0
A20: 01 | B20: Atlántida | C20: 01 | D20: LA CEIBA | E20: 01 | F20: La Ceiba | G20: 010100289 | H20: LA CEIBA | I20: BULEVAR 15 DE SEPTIEMBRE | K20: 0 | L20: 0 | M20: 453 | N20: 328 | O20: 0 | P20: 0 | Q20: 0 | R20: 0 | S20: 0 | T20: 0
A21: 01 | B21: Atlántida | C21: 02 | D21: El Porvenir | E21: 07 | F21: El Gancho | G21: 010200011 | H21: MARCO AURELIO SOTO | I21: LOS CACERES | K21: 24 | L21: 36 | M21: 0 | N21: 0 | O21: 0 | P21: 0 | Q21: 0 | R21: 0 | S21: 0 | T21: 0
A22: 01 | B22: Atlántida | C22: 02 | D22: El Porvenir | E22: 08 | F22: El Pino | G22: 010200014 | H22: NARCISO HERNANDEZ | I22: EL PINO, COL 9 DE JULIO | K22: 22 | L22: 30 | M22: 0 | N22: 0 | O22: 0 | P22: 0 | Q22: 0 | R22: 0 | S22: 0 | T22: 0
A23: 01 | B23: Atlántida | C23: 02 | D23: El Porvenir | E23: 01 | F23: El Porvenir | G23: 010200026 | H23: EL PORVENIR | I23: Barrio Nuevo | K23: 0 | L23: 0 | M23: 298 | N23: 291 | O23: 0 | P23: 0 | Q23: 0 | R23: 0 | S23: 0 | T23: 0
A24: 01 | B24: Atlántida | C24: 02 | D24: El Porvenir | E24: 10 | F24: La Unión | G24: 010200027 | H24: JOSE MANUEL DIAZ PALMA | I24: LA UNION, BETANCOUR FRENTE COL. EL DIAMANTE | K24: 0 | L24: 0 | M24: 180 | N24: 157 | O24: 0 | P24: 0 | Q24: 0 | R24: 0 | S24: 0 | T24: 0
A25: 01 | B25: Atlántida | C25: 02 | D25: El Porvenir | E25: 08 | F25: El Pino | G25: 010200028 | H25: RAFAEL PINEDA PONCE | I25: Barrio San Jose | K25: 0 | L25: 0 | M25: 294 | N25: 228 | O25: 55 | P25: 26 | Q25: 36 | R25: 37 | S25: 0 | T25: 0
A26: 01 | B26: Atlántida | C26: 02 | D26: El Porvenir | E26: 07 | F26: El Gancho | G26: 010200035 | H26: CEB HERIBERTO FLORES LAGOS | I26: ALDEA EL GANCHO | K26: 31 | L26: 27 | M26: 0 | N26: 0 | O26: 0 | P26: 0 | Q26: 0 | R26: 0 | S26: 0 | T26: 0
A27: 01 | B27: Atlántida | C27: 03 | D27: Esparta | E27: 14 | F27: La Libertad | G27: 010300024 | H27: RAFAEL BARDALES BUESO | I27: LA LIBERTAD | K27: 26 | L27: 20 | M27: 0 | N27: 0 | O27: 0 | P27: 0 | Q27: 0 | R27: 0 | S27: 0 | T27: 0
A28: 01 | B28: Atlántida | C28: 03 | D28: Esparta | E28: 20 | F28: Lombardía o La Curva | G28: 010300026 | H28: ESTEBAN GUARDIOLA | I28: LOMBARDIA | K28: 60 | L28: 56 | M28: 0 | N28: 0 | O28: 0 | P28: 0 | Q28: 0 | R28: 0 | S28: 0 | T28: 0
A29: 01 | B29: Atlántida | C29: 03 | D29: Esparta | E29: 20 | F29: Lombardía o La Curva | G29: 010300026 | H29: ESTEBAN GUARDIOLA | I29: LOMBARDIA | K29: 0 | L29: 0 | M29: 19 | N29: 15 | O29: 0 | P29: 0 | Q29: 0 | R29: 0 | S29: 0 | T29: 0
A30: 01 | B30: Atlántida | C30: 03 | D30: Esparta | E30: 19 | F30: Las Flores de Leán | G30: 010300031 | H30: JOSE TRINIDAD CABAÑAS | I30: FLORES DE LEAN | K30: 26 | L30: 27 | M30: 0 | N30: 0 | O30: 0 | P30: 0 | Q30: 0 | R30: 0 | S30: 0 | T30: 0
A31: 01 | B31: Atlántida | C31: 03 | D31: Esparta | E31: 07 | F31: Ceibita Way | G31: 010300032 | H31: RAMON ROSA | I31: CEIBITA WAY | K31: 0 | L31: 0 | M31: 29 | N31: 26 | O31: 0 | P31: 0 | Q31: 0 | R31: 0 | S31: 0 | T31: 0
A32: 01 | B32: Atlántida | C32: 03 | D32: Esparta | E32: 07 | F32: Ceibita Way | G32: 010300032 | H32: RAMON ROSA | I32: CEIBITA WAY | K32: 52 | L32: 51 | M32: 0 | N32: 0 | O32: 0 | P32: 0 | Q32: 0 | R32: 0 | S32: 0 | T32: 0
A33: 01 | B33: Atlántida | C33: 03 | D33: Esparta | E33: 01 | F33: Esparta | G33: 010300046 | H33: JACOBO P. MUNGUIA | I33: BARRIO LEMPIRA, ESPARTA | K33: 0 | L33: 0 | M33: 154 | N33: 132 | O33: 0 | P33: 0 | Q33: 228 | R33: 239 | S33: 0 | T33: 0
A34: 01 | B34: Atlántida | C34: 04 | D34: Jutiapa | E34: 01 | F34: Jutiapa | G34: 010400001 | H34: REPUBLICA DE VENEZUELA | I34: JUTIAPA, BARRIO LEMPIRA | K34: 0 | L34: 0 | M34: 422 | N34: 333 | O34: 0 | P34: 0 | Q34: 807 | R34: 689 | S34: 0 | T34: 0
A35: 01 | B35: Atlántida | C35: 04 | D35: Jutiapa | E35: 31 | F35: Tomalá | G35: 010400008 | H35: SAGRADO CORAZON | I35: TOMALA | K35: 0 | L35: 0 | M35: 38 | N35: 16 | O35: 0 | P35: 0 | Q35: 0 | R35: 0 | S35: 0 | T35: 0
A36: 01 | B36: Atlántida | C36: 04 | D36: Jutiapa | E36: 31 | F36: Tomalá | G36: 010400008 | H36: SAGRADO CORAZON | I36: TOMALA | K36: 42 | L36: 31 | M36: 0 | N36: 0 | O36: 0 | P36: 0 | Q36: 0 | R36: 0 | S36: 0 | T36: 0
A37: 01 | B37: Atlántida | C37: 04 | D37: Jutiapa | E37: 25 | F37: Roma | G37: 010400010 | H37: 15 DE SEPTIEMBRE | I37: ALDEA DE ROMA | K37: 38 | L37: 40 | M37: 0 | N37: 0 | O37: 0 | P37: 0 | Q37: 0 | R37: 0 | S37: 0 | T37: 0
A38: 01 | B38: Atlántida | C38: 04 | D38: Jutiapa | E38: 21 | F38: Nueva Armenia | G38: 010400011 | H38: VISITACION PADILLA | I38: NUEVA ARMENIA | K38: 44 | L38: 35 | M38: 0 | N38: 0 | O38: 0 | P38: 0 | Q38: 0 | R38: 0 | S38: 0 | T38: 0
A39: 01 | B39: Atlántida | C39: 04 | D39: Jutiapa | E39: 07 | F39: Descombros | G39: 010400015 | H39: RENOVACION | I39: DESCOMBROS | K39: 61 | L39: 48 | M39: 0 | N39: 0 | O39: 0 | P39: 0 | Q39: 0 | R39: 0 | S39: 0 | T39: 0
A40: 01 | B40: Atlántida | C40: 04 | D40: Jutiapa | E40: 16 | F40: Ilamapa | G40: 010400016 | H40: JOSE CECILIO DEL VALLE | I40: ILAMAPA, BARRIO EL CENTRO | K40: 34 | L40: 38 | M40: 0 | N40: 0 | O40: 0 | P40: 0 | Q40: 0 | R40: 0 | S40: 0 | T40: 0
A41: 01 | B41: Atlántida | C41: 04 | D41: Jutiapa | E41: 23 | F41: Piedras Amarillas | G41: 010400041 | H41: JOSE TRINIDAD REYES | I41: PIEDRA AMARILLAS | K41: 77 | L41: 57 | M41: 0 | N41: 0 | O41: 0 | P41: 0 | Q41: 0 | R41: 0 | S41: 0 | T41: 0
A42: 01 | B42: Atlántida | C42: 04 | D42: Jutiapa | E42: 18 | F42: La Bomba | G42: 010400067 | H42: MARCO ANTONIO PONCE | I42: LA BOMBA | K42: 49 | L42: 39 | M42: 0 | N42: 0 | O42: 0 | P42: 0 | Q42: 0 | R42: 0 | S42: 0 | T42: 0
A43: 01 | B43: Atlántida | C43: 04 | D43: Jutiapa | E43: 15 | F43: Entelina | G43: 010400069 | H43: INDEPENDENCIA | I43: ENTELINA | K43: 23 | L43: 24 | M43: 0 | N43: 0 | O43: 0 | P43: 0 | Q43: 0 | R43: 0 | S43: 0 | T43: 0
A44: 01 | B44: Atlántida | C44: 05 | D44: La Masica | E44: 07 | F44: El Naranjal | G44: 010500013 | H44: MINERVA | I44: EL NARANJAL | K44: 68 | L44: 81 | M44: 0 | N44: 0 | O44: 0 | P44: 0 | Q44: 0 | R44: 0 | S44: 0 | T44: 0
A45: 01 | B45: Atlántida | C45: 05 | D45: La Masica | E45: 13 | F45: San Juan Benque | G45: 010500015 | H45: JOSE TRINIDAD CABAÐAS | I45: SAN JUAN BENQUE | K45: 0 | L45: 0 | M45: 15 | N45: 16 | O45: 0 | P45: 0 | Q45: 0 | R45: 0 | S45: 0 | T45: 0
A46: 01 | B46: Atlántida | C46: 05 | D46: La Masica | E46: 13 | F46: San Juan Benque | G46: 010500015 | H46: JOSE TRINIDAD CABAÐAS | I46: SAN JUAN BENQUE | K46: 30 | L46: 20 | M46: 0 | N46: 0 | O46: 0 | P46: 0 | Q46: 0 | R46: 0 | S46: 0 | T46: 0
A47: 01 | B47: Atlántida | C47: 05 | D47: La Masica | E47: 01 | F47: San Francisco | G47: 010500056 | H47: GONZALO G. RODRIGUEZ | I47: BARRIO EL CENTRO | K47: 0 | L47: 0 | M47: 491 | N47: 435 | O47: 0 | P47: 0 | Q47: 0 | R47: 0 | S47: 0 | T47: 0
A48: 01 | B48: Atlántida | C48: 05 | D48: La Masica | E48: 14 | F48: San Juan Pueblo | G48: 010500057 | H48: MARCELINO PONCE MARTINEZ | I48: SAN JUAN PUEBLO | K48: 0 | L48: 0 | M48: 232 | N48: 245 | O48: 0 | P48: 0 | Q48: 0 | R48: 0 | S48: 0 | T48: 0
A49: 01 | B49: Atlántida | C49: 05 | D49: La Masica | E49: 14 | F49: San Juan Pueblo | G49: 010500058 | H49: PERLA DE SAN JUAN | I49: JUAN PUEBLO | K49: 0 | L49: 0 | M49: 521 | N49: 386 | O49: 0 | P49: 0 | Q49: 308 | R49: 313 | S49: 0 | T49: 0
A50: 01 | B50: Atlántida | C50: 06 | D50: San Francisco | E50: 01 | F50: San Francisco | G50: 010600020 | H50: SAN FRANCISCO DE ASIS | I50: SAN FRANCISCO | K50: 0 | L50: 0 | M50: 262 | N50: 227 | O50: 0 | P50: 0 | Q50: 0 | R50: 0 | S50: 0 | T50: 0
A51: 01 | B51: Atlántida | C51: 06 | D51: San Francisco | E51: 10 | F51: Santa Ana | G51: 010600021 | H51: AGRICOLA JHON F. KENNEDY | I51: EL TRIANGULO | K51: 0 | L51: 0 | M51: 10 | N51: 211 | O51: 0 | P51: 0 | Q51: 0 | R51: 0 | S51: 0 | T51: 0
A52: 01 | B52: Atlántida | C52: 06 | D52: San Francisco | E52: 10 | F52: Santa Ana | G52: 010600022 | H52: JOSE ROSARIO BONANO | I52: SANTA ANA | K52: 0 | L52: 0 | M52: 332 | N52: 301 | O52: 0 | P52: 0 | Q52: 0 | R52: 0 | S52: 0 | T52: 0
A53: 01 | B53: Atlántida | C53: 07 | D53: Tela | E53: 01 | F53: Tela | G53: 010700003 | H53: FRANCISCO MORAZAN | I53: EL CENTRO | K53: 129 | L53: 105 | M53: 0 | N53: 0 | O53: 0 | P53: 0 | Q53: 0 | R53: 0 | S53: 0 | T53: 0
A54: 01 | B54: Atlántida | C54: 07 | D54: Tela | E54: 01 | F54: Tela | G54: 010700009 | H54: ANTONIO JOSE COELLO | I54: BARRIO SAN JOSE | K54: 53 | L54: 59 | M54: 0 | N54: 0 | O54: 0 | P54: 0 | Q54: 0 | R54: 0 | S54: 0 | T54: 0
A55: 01 | B55: Atlántida | C55: 07 | D55: Tela | E55: 01 | F55: Tela | G55: 010700011 | H55: LEMPIRA | I55: BARRIO LEMPIRA | K55: 47 | L55: 46 | M55: 0 | N55: 0 | O55: 0 | P55: 0 | Q55: 0 | R55: 0 | S55: 0 | T55: 0
A56: 01 | B56: Atlántida | C56: 07 | D56: Tela | E56: 01 | F56: Tela | G56: 010700013 | H56: DR MIGUEL PAZ BARAHONA | I56: EL CENTRO | K56: 44 | L56: 49 | M56: 0 | N56: 0 | O56: 0 | P56: 0 | Q56: 0 | R56: 0 | S56: 0 | T56: 0
A57: 01 | B57: Atlántida | C57: 07 | D57: Tela | E57: 28 | F57: Tela | G57: 010700017 | H57: ESTEBAN GUARDIOLA | I57: EL TRIUNFO DE LA CRUZ | K57: 100 | L57: 73 | M57: 0 | N57: 0 | O57: 0 | P57: 0 | Q57: 0 | R57: 0 | S57: 0 | T57: 0
A58: 01 | B58: Atlántida | C58: 07 | D58: Tela | E58: 74 | F58: Tornabé | G58: 010700018 | H58: MARCO AURELIO SOTO | I58: TORNABE | K58: 81 | L58: 60 | M58: 0 | N58: 0 | O58: 0 | P58: 0 | Q58: 0 | R58: 0 | S58: 0 | T58: 0
A59: 01 | B59: Atlántida | C59: 07 | D59: Tela | E59: 02 | F59: Agua Blanca | G59: 010700030 | H59: JOSE TRINIDAD CABAÑAS | I59: AGUA BLANCA | K59: 18 | L59: 14 | M59: 0 | N59: 0 | O59: 0 | P59: 0 | Q59: 0 | R59: 0 | S59: 0 | T59: 0
A60: 01 | B60: Atlántida | C60: 07 | D60: Tela | E60: 33 | F60: La Esperanza | G60: 010700034 | H60: MANUEL BONILLA | I60: LA ESPERANZA | K60: 51 | L60: 42 | M60: 0 | N60: 0 | O60: 0 | P60: 0 | Q60: 0 | R60: 0 | S60: 0 | T60: 0
A61: 01 | B61: Atlántida | C61: 07 | D61: Tela | E61: 22 | F61: El Guano | G61: 010700038 | H61: PABLO ZELAYA SIERRA | I61: EL GUANO | K61: 42 | L61: 34 | M61: 0 | N61: 0 | O61: 0 | P61: 0 | Q61: 0 | R61: 0 | S61: 0 | T61: 0
A62: 01 | B62: Atlántida | C62: 07 | D62: Tela | E62: 75 | F62: Villafranca | G62: 010700041 | H62: JOSE TRINIDAD REYES | I62: VILLA FRANCA | K62: 48 | L62: 39 | M62: 0 | N62: 0 | O62: 0 | P62: 0 | Q62: 0 | R62: 0 | S62: 0 | T62: 0
A63: 01 | B63: Atlántida | C63: 07 | D63: Tela | E63: 40 | F63: Las Delicias No.1 | G63: 010700044 | H63: NATIVIDAD MENDOZA | I63: LAS DELICIAS | K63: 46 | L63: 45 | M63: 0 | N63: 0 | O63: 0 | P63: 0 | Q63: 0 | R63: 0 | S63: 0 | T63: 0
A64: 01 | B64: Atlántida | C64: 07 | D64: Tela | E64: 01 | F64: Tela | G64: 010700047 | H64: MAESTROS JUBILADOS | I64: BARRIO VENECIA | K64: 77 | L64: 72 | M64: 0 | N64: 0 | O64: 0 | P64: 0 | Q64: 0 | R64: 0 | S64: 0 | T64: 0
A65: 01 | B65: Atlántida | C65: 07 | D65: Tela | E65: 72 | F65: Toloa Adentro | G65: 010700063 | H65: SIMON BOLIVAR | I65: TOLOA ADENTRO | K65: 32 | L65: 17 | M65: 0 | N65: 0 | O65: 0 | P65: 0 | Q65: 0 | R65: 0 | S65: 0 | T65: 0
A66: 01 | B66: Atlántida | C66: 07 | D66: Tela | E66: 61 | F66: Procón | G66: 010700070 | H66: LA INSTRUCCION | I66: PROCON | K66: 23 | L66: 21 | M66: 0 | N66: 0 | O66: 0 | P66: 0 | Q66: 0 | R66: 0 | S66: 0 | T66: 0
A67: 01 | B67: Atlántida | C67: 07 | D67: Tela | E67: 57 | F67: Paujiles | G67: 010700109 | H67: VISITACION PADILLA | I67: PAUJILES | K67: 62 | L67: 59 | M67: 0 | N67: 0 | O67: 0 | P67: 0 | Q67: 0 | R67: 0 | S67: 0 | T67: 0
A68: 01 | B68: Atlántida | C68: 07 | D68: Tela | E68: 01 | F68: Tela | G68: 010700110 | H68: JOHN F. KENNEDY | I68: BARRIO HILAN CREECK | K68: 110 | L68: 98 | M68: 0 | N68: 0 | O68: 0 | P68: 0 | Q68: 0 | R68: 0 | S68: 0 | T68: 0
A69: 01 | B69: Atlántida | C69: 07 | D69: Tela | E69: 01 | F69: Tela | G69: 010700127 | H69: BENJAMIN MUNGUIA | I69: COL GRANT | K69: 32 | L69: 23 | M69: 0 | N69: 0 | O69: 0 | P69: 0 | Q69: 0 | R69: 0 | S69: 0 | T69: 0
A70: 01 | B70: Atlántida | C70: 07 | D70: Tela | E70: 01 | F70: Tela | G70: 010700163 | H70: ESCUELA NORMAL MIXTA DEL LITORAL ATLANTICO | I70: COLONIA SITRATERCO | K70: 0 | L70: 0 | M70: 1047 | N70: 400 | O70: 0 | P70: 0 | Q70: 0 | R70: 0 | S70: 0 | T70: 0
A71: 01 | B71: Atlántida | C71: 07 | D71: Tela | E71: 70 | F71: Santiago | G71: 010700165 | H71: RAFAEL PINEDA PONCE | I71: SANTIAGO | K71: 0 | L71: 0 | M71: 100 | N71: 85 | O71: 0 | P71: 0 | Q71: 0 | R71: 0 | S71: 0 | T71: 0
A72: 01 | B72: Atlántida | C72: 07 | D72: Tela | E72: 50 | F72: Mezapa o Santa Rosa del Norte | G72: 010700166 | H72: CELESTINO CANALES SIERRA | I72: SANTA ROSA DEL N. COL MUNICIPAL | K72: 0 | L72: 0 | M72: 343 | N72: 267 | O72: 0 | P72: 0 | Q72: 0 | R72: 0 | S72: 0 | T72: 0
A73: 01 | B73: Atlántida | C73: 07 | D73: Tela | E73: 64 | F73: San Alejo | G73: 010700168 | H73: TULIO EDGARDO MEMBREÑO | I73: SAN ALEJO KM 15 | K73: 0 | L73: 0 | M73: 260 | N73: 208 | O73: 0 | P73: 0 | Q73: 357 | R73: 365 | S73: 0 | T73: 0
A74: 01 | B74: Atlántida | C74: 07 | D74: Tela | E74: 01 | F74: Tela | G74: 010700173 | H74: INSTITUTO TRIUNFO DE LA CRUZ | I74: COLONIA SAN ALEJO | K74: 0 | L74: 0 | M74: 1316 | N74: 1084 | O74: 211 | P74: 99 | Q74: 0 | R74: 0 | S74: 0 | T74: 0
A75: 01 | B75: Atlántida | C75: 08 | D75: Arizona | E75: 19 | F75: Mezapita | G75: 010800007 | H75: RAFAEL HELIODORO VALLE | I75: MEZAPITA | K75: 46 | L75: 49 | M75: 0 | N75: 0 | O75: 0 | P75: 0 | Q75: 0 | R75: 0 | S75: 0 | T75: 0
A76: 01 | B76: Atlántida | C76: 08 | D76: Arizona | E76: 14 | F76: La Libertad | G76: 010800020 | H76: MANUEL BONILLA | I76: JILAMO NUEVO | K76: 62 | L76: 46 | M76: 0 | N76: 0 | O76: 0 | P76: 0 | Q76: 0 | R76: 0 | S76: 0 | T76: 0
A77: 01 | B77: Atlántida | C77: 08 | D77: Arizona | E77: 22 | F77: San Francisco de Saco | G77: 010800021 | H77: JOSE TRINIDAD REYES | I77: SAN FRANCISCO DE SACO | K77: 61 | L77: 39 | M77: 0 | N77: 0 | O77: 0 | P77: 0 | Q77: 0 | R77: 0 | S77: 0 | T77: 0
A78: 01 | B78: Atlántida | C78: 08 | D78: Arizona | E78: 25 | F78: Santa María | G78: 010800023 | H78: LEMPIRA | I78: SANTA MARIA | K78: 41 | L78: 36 | M78: 0 | N78: 0 | O78: 0 | P78: 0 | Q78: 0 | R78: 0 | S78: 0 | T78: 0
A79: 01 | B79: Atlántida | C79: 08 | D79: Arizona | E79: 27 | F79: Suyapa de Leán o Mataras | G79: 010800024 | H79: LUIS LANDA | I79: MATARRAS | K79: 32 | L79: 35 | M79: 0 | N79: 0 | O79: 0 | P79: 0 | Q79: 0 | R79: 0 | S79: 0 | T79: 0
A80: 01 | B80: Atlántida | C80: 08 | D80: Arizona | E80: 01 | F80: Esparta | G80: 010800040 | H80: SUPERACION DEL VALLE LEAN | I80: ARIZONA, COLONIA GRACIAS A DIOS | K80: 0 | L80: 0 | M80: 216 | N80: 137 | O80: 45 | P80: 44 | Q80: 0 | R80: 0 | S80: 0 | T80: 0
A81: 01 | B81: Atlántida | C81: 08 | D81: Arizona | E81: 03 | F81: Atenas de San Cristóbal o Km. | G81: 010800041 | H81: ARTURO ALVAREZ CALDERON | I81: ATENAS, SAN CRIST | K81: 0 | L81: 0 | M81: 167 | N81: 169 | O81: 0 | P81: 0 | Q81: 0 | R81: 0 | S81: 0 | T81: 0
A82: 01 | B82: Atlántida | C82: 08 | D82: Arizona | E82: 18 | F82: Mezapa | G82: 010800042 | H82: JUAN ANTONIO PINEDA | I82: MEZAPA | K82: 0 | L82: 0 | M82: 127 | N82: 130 | O82: 0 | P82: 0 | Q82: 59 | R82: 55 | S82: 0 | T82: 0
A83: 02 | B83: Colón | C83: 01 | D83: Trujillo | E83: 08 | F83: Puerto Castilla | G83: 020100015 | H83: 14 DE AGOSTO | I83: PUERTO CASTILLA | K83: 49 | L83: 40 | M83: 0 | N83: 0 | O83: 0 | P83: 0 | Q83: 0 | R83: 0 | S83: 0 | T83: 0
A84: 02 | B84: Colón | C84: 01 | D84: Trujillo | E84: 05 | F84: Ilanga | G84: 020100023 | H84: SAN JUAN BOSCO | I84: CHACALAPA | K84: 33 | L84: 19 | M84: 0 | N84: 0 | O84: 0 | P84: 0 | Q84: 0 | R84: 0 | S84: 0 | T84: 0
A85: 02 | B85: Colón | C85: 01 | D85: Trujillo | E85: 05 | F85: Ilanga | G85: 020100041 | H85: BENITO JUAREZ | I85: RIGORES | K85: 81 | L85: 73 | M85: 0 | N85: 0 | O85: 0 | P85: 0 | Q85: 0 | R85: 0 | S85: 0 | T85: 0
A86: 02 | B86: Colón | C86: 01 | D86: Trujillo | E86: 09 | F86: Trujillo | G86: 020100043 | H86: EL DESPERTAR | I86: SANTA LUCIA | K86: 73 | L86: 81 | M86: 0 | N86: 0 | O86: 0 | P86: 0 | Q86: 0 | R86: 0 | S86: 0 | T86: 0
A87: 02 | B87: Colón | C87: 01 | D87: Trujillo | E87: 08 | F87: Trujillo | G87: 020100051 | H87: JAIRO AYALA | I87: GUADALUPE CARNEY | K87: 53 | L87: 65 | M87: 0 | N87: 0 | O87: 0 | P87: 0 | Q87: 0 | R87: 0 | S87: 0 | T87: 0
A88: 02 | B88: Colón | C88: 01 | D88: Trujillo | E88: 06 | F88: Trujillo | G88: 020100059 | H88: 18 DE MAYO | I88: CAPIRO | K88: 56 | L88: 38 | M88: 0 | N88: 0 | O88: 0 | P88: 0 | Q88: 0 | R88: 0 | S88: 0 | T88: 0
A89: 02 | B89: Colón | C89: 01 | D89: Trujillo | E89: 03 | F89: Chapagua | G89: 020100060 | H89: 13 DE MAYO | I89: COOPERATIVA 25 DE ABRIL | K89: 72 | L89: 65 | M89: 0 | N89: 0 | O89: 0 | P89: 0 | Q89: 0 | R89: 0 | S89: 0 | T89: 0
A90: 02 | B90: Colón | C90: 01 | D90: Trujillo | E90: 01 | F90: Trujillo | G90: 020100092 | H90: MATILDE CORDOVA DE SUAZO | I90: COLONIA EDUARDO CASTILLO, CALLE PRINCIPAL | K90: 168 | L90: 83 | M90: 0 | N90: 0 | O90: 0 | P90: 0 | Q90: 0 | R90: 0 | S90: 0 | T90: 0
A91: 02 | B91: Colón | C91: 01 | D91: Trujillo | E91: 01 | F91: Trujillo | G91: 020100092 | H91: MATILDE CORDOVA DE SUAZO | I91: COLONIA EDUARDO CASTILLO, CALLE PRINCIPAL | K91: 0 | L91: 0 | M91: 1161 | N91: 461 | O91: 0 | P91: 0 | Q91: 0 | R91: 0 | S91: 0 | T91: 0
A92: 02 | B92: Colón | C92: 01 | D92: Trujillo | E92: 05 | F92: Ilanga | G92: 020100093 | H92: MODESTO RODAS ALVARADO | I92: ILANGA | K92: 0 | L92: 0 | M92: 266 | N92: 276 | O92: 86 | P92: 64 | Q92: 0 | R92: 0 | S92: 0 | T92: 0
A93: 02 | B93: Colón | C93: 01 | D93: Trujillo | E93: 01 | F93: Trujillo | G93: 020100094 | H93: ESPIRITU DEL SIGLO | I93: BARRIO BUENOS AIR | K93: 0 | L93: 0 | M93: 631 | N93: 550 | O93: 128 | P93: 72 | Q93: 0 | R93: 0 | S93: 0 | T93: 0
A94: 02 | B94: Colón | C94: 01 | D94: Trujillo | E94: 09 | F94: Tarros | G94: 020100095 | H94: FRANCISCO MORAZAN | I94: COOPERATIVA HONDURAS AGRICOLA | K94: 0 | L94: 0 | M94: 245 | N94: 230 | O94: 0 | P94: 0 | Q94: 0 | R94: 0 | S94: 0 | T94: 0
A95: 02 | B95: Colón | C95: 01 | D95: Trujillo | E95: 07 | F95: La Brea | G95: 020100105 | H95: OSCAR RAMON NAJERA | I95: LA BREA | K95: 0 | L95: 0 | M95: 116 | N95: 105 | O95: 0 | P95: 0 | Q95: 0 | R95: 0 | S95: 0 | T95: 0
A96: 02 | B96: Colón | C96: 01 | D96: Trujillo | E96: 05 | F96: Ilanga | G96: 020100110 | H96: CLAUDINA AGUILAR OCHOA | I96: EL COCO | K96: 53 | L96: 46 | M96: 0 | N96: 0 | O96: 0 | P96: 0 | Q96: 0 | R96: 0 | S96: 0 | T96: 0
A97: 02 | B97: Colón | C97: 02 | D97: Balfate | E97: 16 | F97: Río Coco | G97: 020200008 | H97: ATENEA | I97: RIO COCO | K97: 28 | L97: 17 | M97: 0 | N97: 0 | O97: 0 | P97: 0 | Q97: 0 | R97: 0 | S97: 0 | T97: 0
A98: 02 | B98: Colón | C98: 02 | D98: Balfate | E98: 05 | F98: El Cenizo | G98: 020200012 | H98: LUZ DEL ATLANTICO | I98: CENIZO | K98: 17 | L98: 8 | M98: 0 | N98: 0 | O98: 0 | P98: 0 | Q98: 0 | R98: 0 | S98: 0 | T98: 0
A99: 02 | B99: Colón | C99: 02 | D99: Balfate | E99: 13 | F99: Lis Lis | G99: 020200013 | H99: PRIMAVERA | I99: LIS LIS | K99: 28 | L99: 19 | M99: 0 | N99: 0 | O99: 0 | P99: 0 | Q99: 0 | R99: 0 | S99: 0 | T99: 0
A100: 02 | B100: Colón | C100: 02 | D100: Balfate | E100: 12 | F100: Limera | G100: 020200015 | H100: JUANLINDO | I100: LIMERA | K100: 39 | L100: 24 | M100: 0 | N100: 0 | O100: 0 | P100: 0 | Q100: 0 | R100: 0 | S100: 0 | T100: 0
A101: 02 | B101: Colón | C101: 02 | D101: Balfate | E101: 17 | F101: Río Esteban | G101: 020200023 | H101: RAFAEL LEONARDO CALLEJAS | I101: COLONIA GALLARDO | K101: 0 | L101: 0 | M101: 178 | N101: 120 | O101: 0 | P101: 0 | Q101: 0 | R101: 0 | S101: 0 | T101: 0
A102: 02 | B102: Colón | C102: 02 | D102: Balfate | E102: 01 | F102: Balfate | G102: 020200024 | H102: RAFAEL PINEDA PONCE | I102: BARRIO EL CENTRO | K102: 0 | L102: 0 | M102: 100 | N102: 93 | O102: 0 | P102: 0 | Q102: 0 | R102: 0 | S102: 0 | T102: 0
A103: 02 | B103: Colón | C103: 03 | D103: Iriona | E103: 03 | F103: Cusuna | G103: 020300001 | H103: RODOLFO ROJAS | I103: CUSUNA | K103: 63 | L103: 45 | M103: 0 | N103: 0 | O103: 0 | P103: 0 | Q103: 0 | R103: 0 | S103: 0 | T103: 0
A104: 02 | B104: Colón | C104: 03 | D104: Iriona | E104: 02 | F104: Ciriboya | G104: 020300003 | H104: ALVARO CONTRERAS | I104: CIRIBOYA | K104: 22 | L104: 39 | M104: 0 | N104: 0 | O104: 0 | P104: 0 | Q104: 0 | R104: 0 | S104: 0 | T104: 0
A105: 02 | B105: Colón | C105: 03 | D105: Iriona | E105: 10 | F105: Sico | G105: 020300009 | H105: RAMON ROSA | I105: SAMBITA | K105: 21 | L105: 18 | M105: 0 | N105: 0 | O105: 0 | P105: 0 | Q105: 0 | R105: 0 | S105: 0 | T105: 0
A106: 02 | B106: Colón | C106: 03 | D106: Iriona | E106: 10 | F106: Sico | G106: 020300010 | H106: LA FRATERNIDAD | I106: EL CASTILLO | K106: 33 | L106: 16 | M106: 0 | N106: 0 | O106: 0 | P106: 0 | Q106: 0 | R106: 0 | S106: 0 | T106: 0
A107: 02 | B107: Colón | C107: 03 | D107: Iriona | E107: 08 | F107: San José de La Punta | G107: 020300011 | H107: CARLOTA GONZALES V | I107: IRIONA | K107: 33 | L107: 44 | M107: 0 | N107: 0 | O107: 0 | P107: 0 | Q107: 0 | R107: 0 | S107: 0 | T107: 0
A108: 02 | B108: Colón | C108: 03 | D108: Iriona | E108: 11 | F108: Tocamacho | G108: 020300012 | H108: JUAN LINDO | I108: TOCAMACHO | K108: 60 | L108: 51 | M108: 0 | N108: 0 | O108: 0 | P108: 0 | Q108: 0 | R108: 0 | S108: 0 | T108: 0
A109: 02 | B109: Colón | C109: 03 | D109: Iriona | E109: 07 | F109: Punta de Piedra | G109: 020300015 | H109: JOSE CECILIO DEL VALLE | I109: PUNTA PIEDRA | K109: 65 | L109: 55 | M109: 0 | N109: 0 | O109: 0 | P109: 0 | Q109: 0 | R109: 0 | S109: 0 | T109: 0
A110: 02 | B110: Colón | C110: 03 | D110: Iriona | E110: 05 | F110: Las Champas u Ocotales | G110: 020300016 | H110: PRECENTACION CENTENO | I110: OCOTALES | K110: 52 | L110: 44 | M110: 0 | N110: 0 | O110: 0 | P110: 0 | Q110: 0 | R110: 0 | S110: 0 | T110: 0
A111: 02 | B111: Colón | C111: 03 | D111: Iriona | E111: 09 | F111: Sangrelaya | G111: 020300040 | H111: SAN PEDRO APOSTOL | I111: IRIONA | K111: 0 | L111: 0 | M111: 78 | N111: 80 | O111: 0 | P111: 0 | Q111: 0 | R111: 0 | S111: 0 | T111: 0
A112: 02 | B112: Colón | C112: 03 | D112: Iriona | E112: 10 | F112: Sico | G112: 020300041 | H112: FRANCISCO VELASQUES ARIAS | I112: IRIONA | K112: 0 | L112: 0 | M112: 69 | N112: 76 | O112: 0 | P112: 0 | Q112: 0 | R112: 0 | S112: 0 | T112: 0
A113: 02 | B113: Colón | C113: 03 | D113: Iriona | E113: 05 | F113: Las Champas u Ocotales | G113: 020300050 | H113: JUAN AMBROSIO SABIO CACHO | I113: Jardines de la Sierra | K113: 13 | L113: 18 | M113: 0 | N113: 0 | O113: 0 | P113: 0 | Q113: 0 | R113: 0 | S113: 0 | T113: 0
A114: 02 | B114: Colón | C114: 04 | D114: Limon | E114: 03 | F114: Vallecito | G114: 020400005 | H114: SILVERIO HERNANDEZ TINGLOS | I114: FLORES DE ORIENTE TINGLAS | K114: 60 | L114: 32 | M114: 0 | N114: 0 | O114: 0 | P114: 0 | Q114: 0 | R114: 0 | S114: 0 | T114: 0
A115: 02 | B115: Colón | C115: 04 | D115: Limon | E115: 02 | F115: Francia | G115: 020400008 | H115: JOSE CECILIO DEL VALLE | I115: FRANCIA | K115: 25 | L115: 21 | M115: 0 | N115: 0 | O115: 0 | P115: 0 | Q115: 0 | R115: 0 | S115: 0 | T115: 0
A116: 02 | B116: Colón | C116: 04 | D116: Limon | E116: 01 | F116: Limón | G116: 020400015 | H116: ABEL GONZALES CABALLERO | I116: BARRIO LUCINDA | K116: 0 | L116: 0 | M116: 132 | N116: 119 | O116: 36 | P116: 36 | Q116: 0 | R116: 0 | S116: 0 | T116: 0
A117: 02 | B117: Colón | C117: 04 | D117: Limon | E117: 03 | F117: Vallecito | G117: 020400060 | H117: SILVERIO HERNANDEZ TINGLAS | I117: ALDEA FLORES DE ORIENTE | K117: 0 | L117: 0 | M117: 31 | N117: 4 | O117: 0 | P117: 0 | Q117: 0 | R117: 0 | S117: 0 | T117: 0
A118: 02 | B118: Colón | C118: 05 | D118: Saba | E118: 02 | F118: Barranco Chele | G118: 020500008 | H118: ROGELIO PINEDA NUÑEZ | I118: BARRANCO CHELE | K118: 48 | L118: 26 | M118: 0 | N118: 0 | O118: 0 | P118: 0 | Q118: 0 | R118: 0 | S118: 0 | T118: 0
A119: 02 | B119: Colón | C119: 05 | D119: Saba | E119: 01 | F119: Sabá | G119: 020500036 | H119: NAPOLION ARIAS CRISTALES | I119: LUCIA | K119: 41 | L119: 37 | M119: 0 | N119: 0 | O119: 0 | P119: 0 | Q119: 0 | R119: 0 | S119: 0 | T119: 0
A120: 02 | B120: Colón | C120: 05 | D120: Saba | E120: 07 | F120: Ceibita | G120: 020500037 | H120: PERLA DEL AGUAN | I120: CEIBITA | K120: 13 | L120: 18 | M120: 0 | N120: 0 | O120: 0 | P120: 0 | Q120: 0 | R120: 0 | S120: 0 | T120: 0
A121: 02 | B121: Colón | C121: 05 | D121: Saba | E121: 11 | F121: Elíxir | G121: 020500045 | H121: RAUL MEDRANO GUTIERREZ | I121: ELIXIR | K121: 0 | L121: 0 | M121: 193 | N121: 192 | O121: 0 | P121: 0 | Q121: 0 | R121: 0 | S121: 0 | T121: 0
A122: 02 | B122: Colón | C122: 05 | D122: Saba | E122: 09 | F122: El Achiote | G122: 020500048 | H122: JOSE TRINIDAD CABAÑAS | I122: ACHIOTE, BARRIO EL CENTRO | K122: 65 | L122: 53 | M122: 0 | N122: 0 | O122: 0 | P122: 0 | Q122: 0 | R122: 0 | S122: 0 | T122: 0
A123: 02 | B123: Colón | C123: 05 | D123: Saba | E123: 01 | F123: Sabá | G123: 020500050 | H123: 4 DE SEPTIEMBRE | I123: BELLA VISTA | K123: 0 | L123: 0 | M123: 857 | N123: 707 | O123: 206 | P123: 122 | Q123: 0 | R123: 0 | S123: 0 | T123: 0
A124: 02 | B124: Colón | C124: 06 | D124: Santa fe | E124: 01 | F124: Santa Fe | G124: 020600011 | H124: JUAN JOSE | I124: SARARIA, SANTA FE | K124: 0 | L124: 0 | M124: 87 | N124: 90 | O124: 0 | P124: 0 | Q124: 0 | R124: 0 | S124: 0 | T124: 0
A125: 02 | B125: Colón | C125: 06 | D125: Santa fe | E125: 03 | F125: Plan Grande | G125: 020600012 | H125: ATENEA | I125: QUINITO, SANTA FE | K125: 22 | L125: 32 | M125: 0 | N125: 0 | O125: 0 | P125: 0 | Q125: 0 | R125: 0 | S125: 0 | T125: 0
A126: 02 | B126: Colón | C126: 07 | D126: Santa Rosa de Aguan | E126: 01 | F126: Santa Rosa de Aguán | G126: 020700004 | H126: RAFAEL LEONARDO CALLEJAS ROMERO | I126: RAFAEL LEONARDO CALLEJAS ROMERO | K126: 0 | L126: 0 | M126: 105 | N126: 74 | O126: 0 | P126: 0 | Q126: 0 | R126: 0 | S126: 0 | T126: 0
A127: 02 | B127: Colón | C127: 07 | D127: Santa Rosa de Aguan | E127: 01 | F127: Santa Rosa de Aguán | G127: 020700005 | H127: LA AURORA | I127: DOS BOCAS | K127: 37 | L127: 48 | M127: 0 | N127: 0 | O127: 0 | P127: 0 | Q127: 0 | R127: 0 | S127: 0 | T127: 0
A128: 02 | B128: Colón | C128: 08 | D128: Sonaguera | E128: 31 | F128: Los Planes | G128: 020800006 | H128: ALVARO CONTRERAS | I128: LOS PLANES | K128: 70 | L128: 64 | M128: 0 | N128: 0 | O128: 0 | P128: 0 | Q128: 0 | R128: 0 | S128: 0 | T128: 0
A129: 02 | B129: Colón | C129: 08 | D129: Sonaguera | E129: 20 | F129: Juan Lázaro Abajo o San Jose d | G129: 020800010 | H129: JOSE CECILIO DEL VALLE | I129: EL SASTRE | K129: 55 | L129: 44 | M129: 0 | N129: 0 | O129: 0 | P129: 0 | Q129: 0 | R129: 0 | S129: 0 | T129: 0
A130: 02 | B130: Colón | C130: 08 | D130: Sonaguera | E130: 22 | F130: La Curva de Isletas | G130: 020800012 | H130: PEDRO NUFIO | I130: LA CURVA DE ISLETA | K130: 32 | L130: 23 | M130: 0 | N130: 0 | O130: 0 | P130: 0 | Q130: 0 | R130: 0 | S130: 0 | T130: 0
A131: 02 | B131: Colón | C131: 08 | D131: Sonaguera | E131: 27 | F131: Lorelay | G131: 020800014 | H131: MIGUEL MORAZAN | I131: LORELAY | K131: 42 | L131: 40 | M131: 0 | N131: 0 | O131: 0 | P131: 0 | Q131: 0 | R131: 0 | S131: 0 | T131: 0
A132: 02 | B132: Colón | C132: 08 | D132: Sonaguera | E132: 36 | F132: Quebrada de Arena | G132: 020800015 | H132: OSCAR A FLORES | I132: QUEBRADA DE ARENA | K132: 41 | L132: 33 | M132: 0 | N132: 0 | O132: 0 | P132: 0 | Q132: 0 | R132: 0 | S132: 0 | T132: 0
A133: 02 | B133: Colón | C133: 08 | D133: Sonaguera | E133: 01 | F133: Sonaguera | G133: 020800028 | H133: LUIS LANDA | I133: EL OLVIDO, COL. MORAZAN | K133: 67 | L133: 52 | M133: 0 | N133: 0 | O133: 0 | P133: 0 | Q133: 0 | R133: 0 | S133: 0 | T133: 0
A134: 02 | B134: Colón | C134: 08 | D134: Sonaguera | E134: 39 | F134: Sabana de Utila | G134: 020800033 | H134: JOAQUIN REYES TEJEDA | I134: SABANA DE UTILA | K134: 46 | L134: 19 | M134: 0 | N134: 0 | O134: 0 | P134: 0 | Q134: 0 | R134: 0 | S134: 0 | T134: 0
A135: 02 | B135: Colón | C135: 08 | D135: Sonaguera | E135: 19 | F135: Isleta Central | G135: 020800061 | H135: FRAY BARTOLOME DE LAS CASA | I135: COL 9 DE AGOSTO | K135: 0 | L135: 0 | M135: 189 | N135: 165 | O135: 0 | P135: 0 | Q135: 0 | R135: 0 | S135: 0 | T135: 0
A136: 02 | B136: Colón | C136: 08 | D136: Sonaguera | E136: 34 | F136: Parmas | G136: 020800062 | H136: CARLOS MARTINEZ DURON | I136: PARMA | K136: 0 | L136: 0 | M136: 183 | N136: 196 | O136: 0 | P136: 0 | Q136: 0 | R136: 0 | S136: 0 | T136: 0
A137: 02 | B137: Colón | C137: 08 | D137: Sonaguera | E137: 01 | F137: Sonaguera | G137: 020800063 | H137: 19 DE DICIEMBRE | I137: Bo. San Martin | K137: 0 | L137: 0 | M137: 840 | N137: 767 | O137: 153 | P137: 64 | Q137: 0 | R137: 0 | S137: 0 | T137: 0
A138: 02 | B138: Colón | C138: 08 | D138: Sonaguera | E138: 09 | F138: Churrusquera | G138: 020800073 | H138: NUEVO AMANECER | I138: LA HILARIA | K138: 56 | L138: 29 | M138: 0 | N138: 0 | O138: 0 | P138: 0 | Q138: 0 | R138: 0 | S138: 0 | T138: 0
A139: 02 | B139: Colón | C139: 08 | D139: Sonaguera | E139: 01 | F139: Sonaguera | G139: 020800106 | H139: SALOMON MARTINEZ DURON | I139: SONAGUERA, EL NUEVO SINAI | K139: 0 | L139: 0 | M139: 134 | N139: 109 | O139: 0 | P139: 0 | Q139: 0 | R139: 0 | S139: 0 | T139: 0
A140: 02 | B140: Colón | C140: 09 | D140: Tocoa | E140: 06 | F140: Tocoa | G140: 020900004 | H140: CENTRO AMERICA | I140: GUAPINOL | K140: 74 | L140: 64 | M140: 0 | N140: 0 | O140: 0 | P140: 0 | Q140: 0 | R140: 0 | S140: 0 | T140: 0
A141: 02 | B141: Colón | C141: 09 | D141: Tocoa | E141: 09 | F141: Tocoa | G141: 020900007 | H141: TESORO INFANTIL | I141: CEIBITA | K141: 79 | L141: 36 | M141: 0 | N141: 0 | O141: 0 | P141: 0 | Q141: 0 | R141: 0 | S141: 0 | T141: 0
A142: 02 | B142: Colón | C142: 09 | D142: Tocoa | E142: 01 | F142: Tocoa | G142: 020900008 | H142: PAULO FREIRE | I142: BARRIO MANGASECA | K142: 89 | L142: 72 | M142: 0 | N142: 0 | O142: 0 | P142: 0 | Q142: 0 | R142: 0 | S142: 0 | T142: 0
A143: 02 | B143: Colón | C143: 09 | D143: Tocoa | E143: 13 | F143: Prieta | G143: 020900011 | H143: RAMON MONTOYA | I143: PRIETA | K143: 46 | L143: 36 | M143: 0 | N143: 0 | O143: 0 | P143: 0 | Q143: 0 | R143: 0 | S143: 0 | T143: 0
A144: 02 | B144: Colón | C144: 09 | D144: Tocoa | E144: 17 | F144: Taujica | G144: 020900020 | H144: RAMON ROSA | I144: TAUJICA | K144: 99 | L144: 62 | M144: 0 | N144: 0 | O144: 0 | P144: 0 | Q144: 0 | R144: 0 | S144: 0 | T144: 0
A145: 02 | B145: Colón | C145: 09 | D145: Tocoa | E145: 01 | F145: Tocoa | G145: 020900021 | H145: JUANA DONATILA RUIZ | I145: COLONIA AURORA | K145: 42 | L145: 32 | M145: 0 | N145: 0 | O145: 0 | P145: 0 | Q145: 0 | R145: 0 | S145: 0 | T145: 0
A146: 02 | B146: Colón | C146: 09 | D146: Tocoa | E146: 11 | F146: Tocoa | G146: 020900023 | H146: HIBUERAS | I146: LAS MANGAS | K146: 9 | L146: 10 | M146: 0 | N146: 0 | O146: 0 | P146: 0 | Q146: 0 | R146: 0 | S146: 0 | T146: 0
A147: 02 | B147: Colón | C147: 09 | D147: Tocoa | E147: 17 | F147: Tocoa | G147: 020900026 | H147: 14 DE AGOSTO | I147: COL. SUYAPA | K147: 19 | L147: 24 | M147: 0 | N147: 0 | O147: 0 | P147: 0 | Q147: 0 | R147: 0 | S147: 0 | T147: 0
A148: 02 | B148: Colón | C148: 09 | D148: Tocoa | E148: 08 | F148: La Abisinia | G148: 020900034 | H148: ALFONZO BERGANZA DERAS | I148: LA ABICINIA | K148: 74 | L148: 45 | M148: 0 | N148: 0 | O148: 0 | P148: 0 | Q148: 0 | R148: 0 | S148: 0 | T148: 0
A149: 02 | B149: Colón | C149: 09 | D149: Tocoa | E149: 01 | F149: Tocoa | G149: 020900038 | H149: ROTARIO NO.1 | I149: COLONIA BUENA VISTA | K149: 54 | L149: 15 | M149: 0 | N149: 0 | O149: 0 | P149: 0 | Q149: 0 | R149: 0 | S149: 0 | T149: 0
A150: 02 | B150: Colón | C150: 09 | D150: Tocoa | E150: 01 | F150: Tocoa | G150: 020900073 | H150: TECNICO FROYLAN TURCIOS | I150: BARRIO LA CEIBA | K150: 0 | L150: 0 | M150: 632 | N150: 957 | O150: 150 | P150: 57 | Q150: 0 | R150: 0 | S150: 0 | T150: 0
A151: 02 | B151: Colón | C151: 09 | D151: Tocoa | E151: 16 | F151: Salamá | G151: 020900074 | H151: JOSE CECILIO DEL VALLE | I151: SALAMA,BO. EL TAMARINDO | K151: 0 | L151: 0 | M151: 113 | N151: 86 | O151: 0 | P151: 0 | Q151: 0 | R151: 0 | S151: 0 | T151: 0
A152: 02 | B152: Colón | C152: 09 | D152: Tocoa | E152: 18 | F152: Zamora | G152: 020900075 | H152: BAJO AGUAN | I152: ZAMORA | K152: 0 | L152: 0 | M152: 264 | N152: 181 | O152: 0 | P152: 0 | Q152: 0 | R152: 0 | S152: 0 | T152: 0
A153: 02 | B153: Colón | C153: 09 | D153: Tocoa | E153: 01 | F153: Tocoa | G153: 020900076 | H153: RAMON ROSA | I153: Bo. Abajo y Bo. La Ceiba | K153: 0 | L153: 0 | M153: 2141 | N153: 1251 | O153: 0 | P153: 0 | Q153: 0 | R153: 0 | S153: 0 | T153: 0
A154: 02 | B154: Colón | C154: 09 | D154: Tocoa | E154: 15 | F154: Quebrada de Arena | G154: 020900107 | H154: FAUSTO CASTILLO SUAZO | I154: QUEBRADA DE ARENA | K154: 0 | L154: 0 | M154: 192 | N154: 176 | O154: 0 | P154: 0 | Q154: 0 | R154: 0 | S154: 0 | T154: 0
A155: 02 | B155: Colón | C155: 09 | D155: Tocoa | E155: 02 | F155: Tocoa | G155: 020900126 | H155: JOSE TRINIDAD CABAÑAS | I155: SECTOR SANPEDRO, ADELANTE DE TAPIQUIL | K155: 43 | L155: 24 | M155: 0 | N155: 0 | O155: 0 | P155: 0 | Q155: 0 | R155: 0 | S155: 0 | T155: 0
A156: 02 | B156: Colón | C156: 09 | D156: Tocoa | E156: 18 | F156: Zamora | G156: 020900140 | H156: SAT POLIVALENTE BAJO AGUAN | I156: ZAMORA | K156: 0 | L156: 0 | M156: 39 | N156: 24 | O156: 0 | P156: 0 | Q156: 272 | R156: 266 | S156: 0 | T156: 0
A157: 02 | B157: Colón | C157: 10 | D157: Bonito Oriental | E157: 02 | F157: Corocito | G157: 021000003 | H157: JESUS AGUILAR PAZ | I157: COROCITO | K157: 88 | L157: 72 | M157: 0 | N157: 0 | O157: 0 | P157: 0 | Q157: 0 | R157: 0 | S157: 0 | T157: 0
A158: 02 | B158: Colón | C158: 10 | D158: Bonito Oriental | E158: 04 | F158: El Antigual | G158: 021000008 | H158: EUGENIO MATUTE CANIZALES | I158: EL ANTIGUAL | K158: 29 | L158: 24 | M158: 0 | N158: 0 | O158: 0 | P158: 0 | Q158: 0 | R158: 0 | S158: 0 | T158: 0
A159: 02 | B159: Colón | C159: 10 | D159: Bonito Oriental | E159: 03 | F159: El Achiote | G159: 021000010 | H159: AMANECER CAMPESINO | I159: EL ACHIOTE | K159: 35 | L159: 13 | M159: 0 | N159: 0 | O159: 0 | P159: 0 | Q159: 0 | R159: 0 | S159: 0 | T159: 0
A160: 02 | B160: Colón | C160: 10 | D160: Bonito Oriental | E160: 06 | F160: La Esperanza | G160: 021000013 | H160: MARCO TULIO CASTILLO SANTOS | I160: El Tanque | K160: 0 | L160: 0 | M160: 147 | N160: 124 | O160: 0 | P160: 0 | Q160: 0 | R160: 0 | S160: 0 | T160: 0
A161: 02 | B161: Colón | C161: 10 | D161: Bonito Oriental | E161: 09 | F161: San José del Cinco | G161: 021000016 | H161: RUBEN ANTUNEZ C. | I161: LAS PALMAS,KILOMETRO CINCO | K161: 74 | L161: 64 | M161: 0 | N161: 0 | O161: 0 | P161: 0 | Q161: 0 | R161: 0 | S161: 0 | T161: 0
A162: 02 | B162: Colón | C162: 10 | D162: Bonito Oriental | E162: 01 | F162: Trujillo | G162: 021000023 | H162: ALEXIS ORDOÑEZ PADILLA | I162: EL CARBONAL | K162: 64 | L162: 37 | M162: 0 | N162: 0 | O162: 0 | P162: 0 | Q162: 0 | R162: 0 | S162: 0 | T162: 0
A163: 02 | B163: Colón | C163: 10 | D163: Bonito Oriental | E163: 01 | F163: Trujillo | G163: 021000046 | H163: MANUEL DE JESUS SUBIRANA | I163: BARRIO SUBIRANA | K163: 0 | L163: 0 | M163: 391 | N163: 222 | O163: 0 | P163: 0 | Q163: 0 | R163: 0 | S163: 0 | T163: 0
A164: 03 | B164: Comayagua | C164: 01 | D164: Comayagua | E164: 05 | F164: El Ciruelo | G164: 030100004 | H164: GUADALUPE ULLOA | I164: EL CIRUELO | K164: 20 | L164: 24 | M164: 0 | N164: 0 | O164: 0 | P164: 0 | Q164: 0 | R164: 0 | S164: 0 | T164: 0
A165: 03 | B165: Comayagua | C165: 01 | D165: Comayagua | E165: 01 | F165: Comayagua | G165: 030100016 | H165: CENTRO DE EDUCACION BASICA PABLO PORTILLO FIGUEROA | I165: COL. PRIMERO DE MAYO | K165: 115 | L165: 60 | M165: 0 | N165: 0 | O165: 0 | P165: 0 | Q165: 0 | R165: 0 | S165: 0 | T165: 0
A166: 03 | B166: Comayagua | C166: 01 | D166: Comayagua | E166: 02 | F166: Agua Salada | G166: 030100025 | H166: FRANCISCO MORAZAN | I166: AGUA SALADA | K166: 16 | L166: 15 | M166: 0 | N166: 0 | O166: 0 | P166: 0 | Q166: 0 | R166: 0 | S166: 0 | T166: 0
A167: 03 | B167: Comayagua | C167: 01 | D167: Comayagua | E167: 37 | F167: San José de Pane | G167: 030100026 | H167: LEONCIO VALLE | I167: ALDEA DE SAN JOSE DE PANE | K167: 35 | L167: 26 | M167: 0 | N167: 0 | O167: 0 | P167: 0 | Q167: 0 | R167: 0 | S167: 0 | T167: 0
A168: 03 | B168: Comayagua | C168: 01 | D168: Comayagua | E168: 12 | F168: El Sauce | G168: 030100030 | H168: ESCUELA FRANCISCO MORAZAN | I168: EL SAUCE | K168: 47 | L168: 34 | M168: 0 | N168: 0 | O168: 0 | P168: 0 | Q168: 0 | R168: 0 | S168: 0 | T168: 0
A169: 03 | B169: Comayagua | C169: 01 | D169: Comayagua | E169: 39 | F169: Valle de Angeles | G169: 030100034 | H169: CENTRO DE EDUCACION BASICA COMALHUACAN | I169: VALLE DE ANGELES COMAYAGUA | K169: 28 | L169: 38 | M169: 0 | N169: 0 | O169: 0 | P169: 0 | Q169: 0 | R169: 0 | S169: 0 | T169: 0
A170: 03 | B170: Comayagua | C170: 01 | D170: Comayagua | E170: 01 | F170: Comayagua | G170: 030100047 | H170: RAMON ORTEGA | I170: BARRIO SANTA LUCIA | K170: 39 | L170: 18 | M170: 0 | N170: 0 | O170: 0 | P170: 0 | Q170: 0 | R170: 0 | S170: 0 | T170: 0
A171: 03 | B171: Comayagua | C171: 01 | D171: Comayagua | E171: 01 | F171: Comayagua | G171: 030100052 | H171: RAMIRO HUMBERTO MORENO | I171: BARRIO BELLA VISTA LA ZAREITA | K171: 80 | L171: 51 | M171: 0 | N171: 0 | O171: 0 | P171: 0 | Q171: 0 | R171: 0 | S171: 0 | T171: 0
A172: 03 | B172: Comayagua | C172: 01 | D172: Comayagua | E172: 10 | F172: El Portillo de La Mora | G172: 030100066 | H172: NICOLAS MONTES | I172: PORTILLO DE LA MORA | K172: 74 | L172: 47 | M172: 0 | N172: 0 | O172: 0 | P172: 0 | Q172: 0 | R172: 0 | S172: 0 | T172: 0
A173: 03 | B173: Comayagua | C173: 01 | D173: Comayagua | E173: 01 | F173: Comayagua | G173: 030100130 | H173: DEPTAL. LEON ALVARADO | I173: BO. TORONDON | K173: 0 | L173: 0 | M173: 1815 | N173: 1473 | O173: 0 | P173: 0 | Q173: 0 | R173: 0 | S173: 0 | T173: 0
A174: 03 | B174: Comayagua | C174: 01 | D174: Comayagua | E174: 31 | F174: Palo Pintado | G174: 030100132 | H174: 18 DE JUNIO | I174: PALO PINTADO | K174: 0 | L174: 0 | M174: 69 | N174: 52 | O174: 0 | P174: 0 | Q174: 12 | R174: 7 | S174: 0 | T174: 0
A175: 03 | B175: Comayagua | C175: 01 | D175: Comayagua | E175: 01 | F175: Comayagua | G175: 030100176 | H175: ESCUELA NORMAL CENTRO AMERICA | I175: EL EDEN, COMAYAGUA | K175: 0 | L175: 0 | M175: 997 | N175: 425 | O175: 0 | P175: 0 | Q175: 0 | R175: 0 | S175: 0 | T175: 0
A176: 03 | B176: Comayagua | C176: 01 | D176: Comayagua | E176: 01 | F176: Comayagua | G176: 030100201 | H176: TECNICO COMALHUACAN | I176: INDEPENDENCIA | K176: 0 | L176: 0 | M176: 166 | N176: 523 | O176: 0 | P176: 0 | Q176: 0 | R176: 0 | S176: 0 | T176: 0
A177: 03 | B177: Comayagua | C177: 01 | D177: Comayagua | E177: 01 | F177: Comayagua | G177: 030100244 | H177: ACADEMIA MILITAR DE AVIACION "CAPITAN ROBERTO RAUL BARAHONA LAGOS" | I177: COMAYAGUA,PALMEROLA | K177: 0 | L177: 0 | M177: 3 | N177: 49 | O177: 0 | P177: 0 | Q177: 0 | R177: 0 | S177: 0 | T177: 0
A178: 03 | B178: Comayagua | C178: 01 | D178: Comayagua | E178: 01 | F178: Comayagua | G178: 030100250 | H178: CENTRO EDUCATIVO SHADDAY | I178: BARRIO SAN BLAS | K178: 0 | L178: 0 | M178: 0 | N178: 0 | O178: 0 | P178: 0 | Q178: 0 | R178: 0 | S178: 176 | T178: 75
A179: 03 | B179: Comayagua | C179: 01 | D179: Comayagua | E179: 14 | F179: El Taladro | G179: 030100264 | H179: NUEVO AMANECER | I179: ASENTAMIENTO ISLA DEL TRIUNFO | K179: 8 | L179: 4 | M179: 0 | N179: 0 | O179: 0 | P179: 0 | Q179: 0 | R179: 0 | S179: 0 | T179: 0
A180: 03 | B180: Comayagua | C180: 01 | D180: Comayagua | G180: 030100289 | H180: INSTITUTO OFICIAL EBEN EZER | I180: COLONIA LOS JASMINEZ | K180: 0 | L180: 0 | M180: 418 | N180: 311 | O180: 430 | P180: 215 | Q180: 0 | R180: 0 | S180: 0 | T180: 0
A181: 03 | B181: Comayagua | C181: 01 | D181: Comayagua | E181: 32 | F181: Piedras Azules | G181: 030100299 | H181: JOSE MANUEL ZELAYA ROSALES | I181: COMAYAGUA | K181: 25 | L181: 25 | M181: 0 | N181: 0 | O181: 0 | P181: 0 | Q181: 0 | R181: 0 | S181: 0 | T181: 0
A182: 03 | B182: Comayagua | C182: 02 | D182: Ajuterique | E182: 01 | F182: Ajuterique | G182: 030200018 | H182: GREGORIO CONSUEGRA | I182: AJUTERIQUE | K182: 0 | L182: 0 | M182: 343 | N182: 289 | O182: 0 | P182: 0 | Q182: 28 | R182: 19 | S182: 0 | T182: 0
A183: 03 | B183: Comayagua | C183: 03 | D183: El Rosario | E183: 03 | F183: Cerro Blanco | G183: 030300005 | H183: JOSE RAMON VILLEDA MORALES | I183: ALDEA CERRO BLANCO | K183: 76 | L183: 43 | M183: 0 | N183: 0 | O183: 0 | P183: 0 | Q183: 0 | R183: 0 | S183: 0 | T183: 0
A184: 03 | B184: Comayagua | C184: 03 | D184: El Rosario | E184: 11 | F184: San Francisco de Loma Larga | G184: 030300008 | H184: DEMETRIO MARTINEZ | I184: LOMA LARGA | K184: 47 | L184: 41 | M184: 0 | N184: 0 | O184: 0 | P184: 0 | Q184: 0 | R184: 0 | S184: 0 | T184: 0
A185: 03 | B185: Comayagua | C185: 03 | D185: El Rosario | E185: 12 | F185: San Isidro | G185: 030300009 | H185: MIGUEL PAZ BARAHONA | I185: SAN ISIDRO | K185: 76 | L185: 50 | M185: 0 | N185: 0 | O185: 0 | P185: 0 | Q185: 0 | R185: 0 | S185: 0 | T185: 0
A186: 03 | B186: Comayagua | C186: 03 | D186: El Rosario | E186: 06 | F186: La Laguna | G186: 030300027 | H186: MANUEL BONILLA | I186: LAS LAGUNAS | K186: 41 | L186: 33 | M186: 0 | N186: 0 | O186: 0 | P186: 0 | Q186: 0 | R186: 0 | S186: 0 | T186: 0
A187: 03 | B187: Comayagua | C187: 03 | D187: El Rosario | E187: 04 | F187: Concepción de Guasistagua | G187: 030300039 | H187: REPUBLICA DE HONDURAS | I187: LA CONCEPCION | K187: 49 | L187: 34 | M187: 0 | N187: 0 | O187: 0 | P187: 0 | Q187: 0 | R187: 0 | S187: 0 | T187: 0
A188: 03 | B188: Comayagua | C188: 03 | D188: El Rosario | E188: 01 | F188: El Rosario | G188: 030300040 | H188: OPOTECA | I188: SAN ANTONIO DE LA SABANETA | K188: 0 | L188: 0 | M188: 162 | N188: 126 | O188: 0 | P188: 0 | Q188: 0 | R188: 0 | S188: 0 | T188: 0
A189: 03 | B189: Comayagua | C189: 04 | D189: Esquias | E189: 06 | F189: Rancho Grande | G189: 030400003 | H189: GREGORIO DONAIRE | I189: BARRIO ARRIBA | K189: 88 | L189: 58 | M189: 0 | N189: 0 | O189: 0 | P189: 0 | Q189: 0 | R189: 0 | S189: 0 | T189: 0
A190: 03 | B190: Comayagua | C190: 04 | D190: Esquias | E190: 06 | F190: Rancho Grande | G190: 030400003 | H190: GREGORIO DONAIRE | I190: BARRIO ARRIBA | K190: 0 | L190: 0 | M190: 36 | N190: 13 | O190: 0 | P190: 0 | Q190: 0 | R190: 0 | S190: 0 | T190: 0
A191: 03 | B191: Comayagua | C191: 04 | D191: Esquias | E191: 07 | F191: Río Chiquito | G191: 030400005 | H191: FRANCISCO MORAZAN | I191: LA MASICA | K191: 60 | L191: 38 | M191: 0 | N191: 0 | O191: 0 | P191: 0 | Q191: 0 | R191: 0 | S191: 0 | T191: 0
A192: 03 | B192: Comayagua | C192: 04 | D192: Esquias | E192: 02 | F192: El Oro Abajo | G192: 030400017 | H192: FRANCISCO MORAZAN | I192: CALPULES | K192: 35 | L192: 21 | M192: 0 | N192: 0 | O192: 0 | P192: 0 | Q192: 0 | R192: 0 | S192: 0 | T192: 0
A193: 03 | B193: Comayagua | C193: 04 | D193: Esquias | E193: 01 | F193: Esquías | G193: 030400040 | H193: ALEJANDRO ALFARO ARRIAGA | I193: Bo. LA ESPERANZA | K193: 0 | L193: 0 | M193: 134 | N193: 93 | O193: 0 | P193: 0 | Q193: 0 | R193: 0 | S193: 0 | T193: 0
A194: 03 | B194: Comayagua | C194: 05 | D194: Humuya | E194: 01 | F194: Humuya | G194: 030500002 | H194: JOSE CECILIO DEL VALLE | I194: FRENTE AL SALON COMUNAL HUMUYA | K194: 32 | L194: 34 | M194: 0 | N194: 0 | O194: 0 | P194: 0 | Q194: 0 | R194: 0 | S194: 0 | T194: 0
A195: 03 | B195: Comayagua | C195: 06 | D195: La Libertad | E195: 19 | F195: Valle Bonito | G195: 030600003 | H195: LA DEMOCRACIA | I195: VALLE BONITO | K195: 39 | L195: 39 | M195: 0 | N195: 0 | O195: 0 | P195: 0 | Q195: 0 | R195: 0 | S195: 0 | T195: 0
A196: 03 | B196: Comayagua | C196: 06 | D196: La Libertad | E196: 14 | F196: San Andrés | G196: 030600009 | H196: JUAN FRANCISCO ROMERO | I196: EL TRANSITO | K196: 62 | L196: 59 | M196: 0 | N196: 0 | O196: 0 | P196: 0 | Q196: 0 | R196: 0 | S196: 0 | T196: 0
A197: 03 | B197: Comayagua | C197: 06 | D197: La Libertad | E197: 01 | F197: La Libertad | G197: 030600013 | H197: POMPILIO ORTEGA | I197: BARRIO BELLA VISTA | K197: 0 | L197: 0 | M197: 363 | N197: 363 | O197: 0 | P197: 0 | Q197: 0 | R197: 0 | S197: 0 | T197: 0
A198: 03 | B198: Comayagua | C198: 06 | D198: La Libertad | E198: 12 | F198: Montañuelas | G198: 030600019 | H198: PEDRO A MEDAL | I198: MONTAÑUELAS | K198: 27 | L198: 28 | M198: 0 | N198: 0 | O198: 0 | P198: 0 | Q198: 0 | R198: 0 | S198: 0 | T198: 0
A199: 03 | B199: Comayagua | C199: 06 | D199: La Libertad | E199: 22 | F199: Zacatalitos | G199: 030600037 | H199: LA DEMOCRACIA | I199: LA LAGUNA DEL RINCON | K199: 105 | L199: 85 | M199: 0 | N199: 0 | O199: 0 | P199: 0 | Q199: 0 | R199: 0 | S199: 0 | T199: 0
A200: 03 | B200: Comayagua | C200: 06 | D200: La Libertad | E200: 01 | F200: La Libertad | G200: 030600047 | H200: RENACIMIENTO | I200: COLONIA LA PISTA | K200: 48 | L200: 40 | M200: 0 | N200: 0 | O200: 0 | P200: 0 | Q200: 0 | R200: 0 | S200: 0 | T200: 0
... 1387 more rows
